Inv Transaction,Supplier Name,Headserv Name,Stratdir Name,Account Description ,Redact Name,Paid Date,Sum of Inv Amount
460272,DOM POLSKI CARE HOME,Adult Services,"Community, Adult & Adults Early Intervention",Residential Home Long Stay Fees,,16/06/2014,"1,755.12"
460276,AINSWORTH NURSING HOME,Adult Services,"Community, Adult & Adults Early Intervention",Residential Home Long Stay Fees,,04/06/2014,"4,491.88"
460276,APPLE COURT,Adult Services,"Community, Adult & Adults Early Intervention",Residential Home Long Stay Fees,,02/06/2014,"5,244.00"
460276,CAMBIAN LEARNING DISABILITIES MIDLANDS LTD,Adult Services,"Community, Adult & Adults Early Intervention",Residential Home Long Stay Fees,,16/06/2014,"22,073.89"
460276,CLEARWATER CARE,Adult Services,"Community, Adult & Adults Early Intervention",Residential Home Long Stay Fees,,16/06/2014,"10,474.59"
460276,DANSHELL HEALTHCARE LTD,Adult Services,"Community, Adult & Adults Early Intervention",Residential Home Long Stay Fees,,02/06/2014,"25,760.00"
460277,CYNGOR ALCOHOL INFORMATION SERVICE - CAIS,Public Health,Public Health,Residential Home Long Stay Fees,,09/06/2014,"2,990.00"
460277,WOODLANDS RESIDENTIAL CARE HOME,Adult Services,"Community, Adult & Adults Early Intervention",Residential Home Long Stay Fees,,09/06/2014,"6,131.36"
460278,BIRCHWOOD,Adult Services,"Community, Adult & Adults Early Intervention",Residential Home Long Stay Fees,,09/06/2014,"7,653.36"
460278,ST MARY'S CONTINUING CARE LTD,Adult Services,"Community, Adult & Adults Early Intervention",Residential Home Long Stay Fees,,09/06/2014,"5,314.29"
460278,TURNING POINT,Adult Services,"Community, Adult & Adults Early Intervention",Residential Home Long Stay Fees,,09/06/2014,"10,080.30"
460278,TURNING POINT,Public Health,Public Health,Residential Home Long Stay Fees,,09/06/2014,"20,371.42"
460279,ACORN RECOVERY PROJECTS,Public Health,Public Health,Residential Home Long Stay Fees,,25/06/2014,"12,936.23"
460279,AINSWORTH NURSING HOME,Adult Services,"Community, Adult & Adults Early Intervention",Residential Home Long Stay Fees,,25/06/2014,"1,275.12"
460279,AMARA CARE LTD,Adult Services,"Community, Adult & Adults Early Intervention",Residential Home Long Stay Fees,,25/06/2014,"21,347.15"
460279,APPLE COURT,Adult Services,"Community, Adult & Adults Early Intervention",Residential Home Long Stay Fees,,25/06/2014,"2,070.00"
460279,AUDEN HOUSE RESIDENTIAL HOME,Adult Services,"Community, Adult & Adults Early Intervention",Residential Home Long Stay Fees,,25/06/2014,"4,746.97"
460279,BAMFORD GRANGE N/H,Adult Services,"Community, Adult & Adults Early Intervention",Residential Home Long Stay Fees,,25/06/2014,"2,837.43"
460279,BEECHFIELD LODGE,Adult Services,"Community, Adult & Adults Early Intervention",Residential Home Long Stay Fees,,25/06/2014,"1,036.51"
460279,BELMONT PARKHILL LTD,Adult Services,"Community, Adult & Adults Early Intervention",Residential Home Long Stay Fees,,25/06/2014,"41,031.52"
460279,BIRCHWOOD,Adult Services,"Community, Adult & Adults Early Intervention",Residential Home Long Stay Fees,,25/06/2014,"2,607.19"
460279,BLACKCLIFFE LTD,Adult Services,"Community, Adult & Adults Early Intervention",Residential Home Long Stay Fees,,25/06/2014,"72,975.14"
460279,BOURNE HOUSE RESIDENTIAL HOME,Adult Services,"Community, Adult & Adults Early Intervention",Residential Home Long Stay Fees,,25/06/2014,"26,618.65"
460279,BOWLACRE HOME,Adult Services,"Community, Adult & Adults Early Intervention",Residential Home Long Stay Fees,,25/06/2014,"16,563.67"
460279,BROOKVALE,Adult Services,"Community, Adult & Adults Early Intervention",Residential Home Long Stay Fees,,25/06/2014,"6,818.84"
460279,BROUGHTON HOUSE HOME FOR  EX-SERVICE PERSONNEL,Adult Services,"Community, Adult & Adults Early Intervention",Residential Home Long Stay Fees,,25/06/2014,909.41
460279,BRYN HAVEN,Adult Services,"Community, Adult & Adults Early Intervention",Residential Home Long Stay Fees,Business Payment,25/06/2014,973.62
460279,CAMBIAN LEARNING DISABILITIES MIDLANDS LTD,Adult Services,"Community, Adult & Adults Early Intervention",Residential Home Long Stay Fees,,25/06/2014,"19,580.97"
460279,CARE UK HOMECARE,Adult Services,"Community, Adult & Adults Early Intervention",Residential Home Long Stay Fees,,25/06/2014,475.24
460279,CARE UK HOMECARE,Adult Services,"Community, Adult & Adults Early Intervention",Residential Home Long Stay Fees,,25/06/2014,"62,967.84"
460279,CARE UK LEARNING DISABILITIES SERVS LTD,Adult Services,"Community, Adult & Adults Early Intervention",Residential Home Long Stay Fees,,25/06/2014,"10,809.26"
460279,CHADDERTON TOTAL CAREUNIT LTD,Adult Services,"Community, Adult & Adults Early Intervention",Residential Home Long Stay Fees,,25/06/2014,"5,548.29"
460279,CHARNLEY HOUSE LIMITED,Adult Services,"Community, Adult & Adults Early Intervention",Residential Home Long Stay Fees,,25/06/2014,"20,059.00"
460279,CLARKSON HOUSE,Adult Services,"Community, Adult & Adults Early Intervention",Residential Home Long Stay Fees,,25/06/2014,"21,034.25"
460279,CLEARWATER CARE,Adult Services,"Community, Adult & Adults Early Intervention",Residential Home Long Stay Fees,,25/06/2014,"3,529.13"
460279,CLIFFEMOUNT COMMUNITY CARE,Adult Services,"Community, Adult & Adults Early Intervention",Residential Home Long Stay Fees,,25/06/2014,"17,401.94"
460279,COMPASS CARE LIMITED,Adult Services,"Community, Adult & Adults Early Intervention",Residential Home Long Stay Fees,,25/06/2014,"4,462.18"
460279,CYNGOR ALCOHOL INFORMATION SERVICE - CAIS,Public Health,Public Health,Residential Home Long Stay Fees,,25/06/2014,"3,450.00"
460279,DANSHELL HEALTHCARE LTD,Adult Services,"Community, Adult & Adults Early Intervention",Residential Home Long Stay Fees,,25/06/2014,"8,400.00"
460279,DOM POLSKI CARE HOME,Adult Services,"Community, Adult & Adults Early Intervention",Residential Home Long Stay Fees,,25/06/2014,"1,815.64"
460279,DOMAIN CARE NORTH WEST LTD,Adult Services,"Community, Adult & Adults Early Intervention",Residential Home Long Stay Fees,,25/06/2014,"4,050.00"
460279,DRYCLOUGH MANOR CARE HOME,Adult Services,"Community, Adult & Adults Early Intervention",Residential Home Long Stay Fees,,25/06/2014,"1,635.00"
460279,EAGLE HOUSE CARE HOME,Adult Services,"Community, Adult & Adults Early Intervention",Residential Home Long Stay Fees,,25/06/2014,"3,034.59"
460279,ELDER HOMES GROUP,Adult Services,"Community, Adult & Adults Early Intervention",Residential Home Long Stay Fees,,25/06/2014,475.24
460279,ELDER HOMES GROUP,Adult Services,"Community, Adult & Adults Early Intervention",Residential Home Long Stay Fees,,25/06/2014,"43,355.86"
460279,EQUALIBRIUM HEALTH CARE,Adult Services,"Community, Adult & Adults Early Intervention",Residential Home Long Stay Fees,,25/06/2014,"5,678.04"
460279,ERNELESTHORP NURSING HOME,Adult Services,"Community, Adult & Adults Early Intervention",Residential Home Long Stay Fees,,25/06/2014,"1,725.90"
460279,FAIRFIELD VIEW CARE LTD,Adult Services,"Community, Adult & Adults Early Intervention",Residential Home Long Stay Fees,,25/06/2014,"50,950.90"
460279,FERN BANK,Adult Services,"Community, Adult & Adults Early Intervention",Residential Home Long Stay Fees,,25/06/2014,"17,155.14"
460279,FIELDHOUSE CARE HOME,Adult Services,"Community, Adult & Adults Early Intervention",Residential Home Long Stay Fees,,25/06/2014,"1,171.00"
460279,FIRBANK HOUSE NURSING & RESIDENTIAL CARE HOME,Adult Services,"Community, Adult & Adults Early Intervention",Residential Home Long Stay Fees,,25/06/2014,"18,095.14"
460279,FOUR SEASONS (DFK) LTD T/AS ASHURST PARK CARE HOME,Adult Services,"Community, Adult & Adults Early Intervention",Residential Home Long Stay Fees,,25/06/2014,"1,118.26"
460279,FOUR SEASONS HEALTH CARE,Adult Services,"Community, Adult & Adults Early Intervention",Residential Home Long Stay Fees,,25/06/2014,"33,569.61"
460279,GRANGEFIELD,Adult Services,"Community, Adult & Adults Early Intervention",Residential Home Long Stay Fees,,25/06/2014,995.68
460279,HATTON GRANGE,Adult Services,"Community, Adult & Adults Early Intervention",Residential Home Long Stay Fees,,25/06/2014,"54,405.83"
460279,HC ONE OF A KIND - GUIDE LANE,Adult Services,"Community, Adult & Adults Early Intervention",Residential Home Long Stay Fees,,25/06/2014,"34,904.07"
460279,HC ONE OF A KIND - KINGS PARK,Adult Services,"Community, Adult & Adults Early Intervention",Residential Home Long Stay Fees,,25/06/2014,"37,737.94"
460279,HILLTOP HALL,Adult Services,"Community, Adult & Adults Early Intervention",Residential Home Long Stay Fees,,25/06/2014,"1,691.71"
460279,HOLME MANOR RESIDENTIAL CARE HOME,Adult Services,"Community, Adult & Adults Early Intervention",Residential Home Long Stay Fees,,25/06/2014,"1,346.51"
460279,JIGSAW CREATIVE CARE LIMITED,Adult Services,"Community, Adult & Adults Early Intervention",Residential Home Long Stay Fees,,25/06/2014,"7,915.71"
460279,LAUREL BANK RESIDENTIAL CARE HOME LTD,Adult Services,"Community, Adult & Adults Early Intervention",Residential Home Long Stay Fees,,25/06/2014,"4,268.01"
460279,LEONARD CHESHIRE DISABILITY,Adult Services,"Community, Adult & Adults Early Intervention",Residential Home Long Stay Fees,,25/06/2014,"11,102.03"
460279,LINWOOD PARK,Public Health,Public Health,Residential Home Long Stay Fees,,25/06/2014,"11,964.28"
460279,LONGWOOD LODGE CARE LTD,Adult Services,"Community, Adult & Adults Early Intervention",Residential Home Long Stay Fees,,25/06/2014,"1,856.22"
460279,LOUTH CARE LTD,Adult Services,"Community, Adult & Adults Early Intervention",Residential Home Long Stay Fees,,25/06/2014,"1,731.43"
460279,LYNWOOD,Adult Services,"Community, Adult & Adults Early Intervention",Residential Home Long Stay Fees,,25/06/2014,"1,851.43"
460279,MARPLE DALE HALL LTD,Adult Services,"Community, Adult & Adults Early Intervention",Residential Home Long Stay Fees,,25/06/2014,"1,590.21"
460279,MERIDIAN HEALTHCARE LTD,Adult Services,"Community, Adult & Adults Early Intervention",Residential Home Long Stay Fees,,25/06/2014,"2,371.49"
460279,MERIDIAN HEALTHCARE LTD,Adult Services,"Community, Adult & Adults Early Intervention",Residential Home Long Stay Fees,,25/06/2014,"829,131.23"
460279,MOSS COTTAGE NURSING HOME,Adult Services,"Community, Adult & Adults Early Intervention",Residential Home Long Stay Fees,,25/06/2014,"2,308.92"
460279,MOSS COTTAGE NURSING HOME,Adult Services,"Community, Adult & Adults Early Intervention",Residential Home Long Stay Fees,,25/06/2014,"35,602.36"
460279,OAKWOOD CARE CENTRE,Adult Services,"Community, Adult & Adults Early Intervention",Residential Home Long Stay Fees,,25/06/2014,"13,634.13"
460279,PENDLEBURY CARE HOMES LTD,Adult Services,"Community, Adult & Adults Early Intervention",Residential Home Long Stay Fees,,25/06/2014,"1,857.75"
460279,PENNINE CARE CENTRE,Adult Services,"Community, Adult & Adults Early Intervention",Residential Home Long Stay Fees,,25/06/2014,"7,988.26"
460279,PENRHOSS RESIDENTIAL HOME,Adult Services,"Community, Adult & Adults Early Intervention",Residential Home Long Stay Fees,,25/06/2014,"1,313.07"
460279,POLEBANK HALL RESIDENTIAL CARE HOME LTD,Adult Services,"Community, Adult & Adults Early Intervention",Residential Home Long Stay Fees,,25/06/2014,"5,626.87"
460279,PROGRESS ADULT SERVICES LIMITED,Adult Services,"Community, Adult & Adults Early Intervention",Residential Home Long Stay Fees,,25/06/2014,"13,797.21"
460279,SIGN,Adult Services,"Community, Adult & Adults Early Intervention",Residential Home Long Stay Fees,,25/06/2014,"5,041.13"
460279,SPINAL UNIT ACTION GROUP,Adult Services,"Community, Adult & Adults Early Intervention",Residential Home Long Stay Fees,,25/06/2014,"4,042.03"
460279,ST GEORGE'S NURSING HOME (OLDHAM) LTD,Adult Services,"Community, Adult & Adults Early Intervention",Residential Home Long Stay Fees,,25/06/2014,"16,032.93"
460279,ST MARY'S CONTINUING CARE LTD,Adult Services,"Community, Adult & Adults Early Intervention",Residential Home Long Stay Fees,,25/06/2014,"5,142.86"
460279,STALEY HOUSE EPH,Adult Services,"Community, Adult & Adults Early Intervention",Residential Home Long Stay Fees,,25/06/2014,"22,607.76"
460279,SUNNY BANK PRS LTD,Adult Services,"Community, Adult & Adults Early Intervention",Residential Home Long Stay Fees,,25/06/2014,"2,636.11"
460279,THE ALEXANDRA,Adult Services,"Community, Adult & Adults Early Intervention",Residential Home Long Stay Fees,,25/06/2014,"1,881.43"
460279,THE DAVID LEWIS CENTRE,Adult Services,"Community, Adult & Adults Early Intervention",Residential Home Long Stay Fees,,25/06/2014,"4,866.47"
460279,THE DELL RESIDENTIAL HOME,Adult Services,"Community, Adult & Adults Early Intervention",Residential Home Long Stay Fees,,25/06/2014,"1,624.89"
460279,THE FREMANTLE TRUST,Adult Services,"Community, Adult & Adults Early Intervention",Residential Home Long Stay Fees,,25/06/2014,"6,024.19"
460279,THE HESLEY GROUP LTD,Adult Services,"Community, Adult & Adults Early Intervention",Residential Home Long Stay Fees,,25/06/2014,"7,560.00"
460279,THE JOSEPH COX CHARITY,Adult Services,"Community, Adult & Adults Early Intervention",Residential Home Long Stay Fees,,25/06/2014,"3,523.01"
460279,THE ROYAL ELMS REST HOMES,Adult Services,"Community, Adult & Adults Early Intervention",Residential Home Long Stay Fees,,25/06/2014,"1,782.17"
460279,THE VICARAGE RESIDENTIAL CARE HOME,Adult Services,"Community, Adult & Adults Early Intervention",Residential Home Long Stay Fees,,25/06/2014,"21,021.77"
460279,THORNCLIFFE GRANGE NURSING HOME,Adult Services,"Community, Adult & Adults Early Intervention",Residential Home Long Stay Fees,,25/06/2014,"22,128.12"
460279,TURNING POINT,Adult Services,"Community, Adult & Adults Early Intervention",Residential Home Long Stay Fees,,25/06/2014,"4,877.57"
460279,TURNING POINT,Public Health,Public Health,Residential Home Long Stay Fees,,25/06/2014,"43,010.00"
460279,UNITED RESPONSE,Adult Services,"Community, Adult & Adults Early Intervention",Residential Home Long Stay Fees,,25/06/2014,"6,172.54"
460279,VICTORIA NURSING HOME,Adult Services,"Community, Adult & Adults Early Intervention",Residential Home Long Stay Fees,,25/06/2014,"8,485.71"
460279,WESTMINSTER HEALTH CARE LTD,Adult Services,"Community, Adult & Adults Early Intervention",Residential Home Long Stay Fees,,25/06/2014,"1,973.57"
460279,WINDMILL CARE HOME,Adult Services,"Community, Adult & Adults Early Intervention",Residential Home Long Stay Fees,,25/06/2014,"1,899.69"
460279,WOODLANDS RESIDENTIAL CARE HOME,Adult Services,"Community, Adult & Adults Early Intervention",Residential Home Long Stay Fees,,25/06/2014,"8,454.36"
470570,AGGREGATE INDUSTRIES UK LIMITED,Technical,Places,General Materials,,02/06/2014,"2,070.16"
470570,ARCO LIMITED,Civil Engineers,"Economic Growth, Investment and Sustainability",Debits Goods Received,,02/06/2014,203.6
470570,ARCO LIMITED,Technical,Places,General Materials,,02/06/2014,438.38
470570,EAGLE CIVIL ENGINEERING LTD,Technical,Places,Sub-contractor Services,,02/06/2014,555.75
470570,ELLIOTT GROUP LTD,Technical,Places,Additional Hire,,02/06/2014,607.1
470570,HUGH LOGAN ENGINEERING,Civil Engineers,"Economic Growth, Investment and Sustainability",Debits Goods Received,,02/06/2014,938
470570,KEN TAYLOR SUPPLIES LTD,Technical,Places,General Materials,,02/06/2014,909.7
470570,KNOWLES BROTHERS WASTE MANAGEMENT LIMITED,Technical,Places,Sub-contractor Services,,02/06/2014,"1,300.00"
470570,KONSTRUCTA HIRE LIMITED,Technical,Places,Additional Hire,,02/06/2014,"1,713.00"
470570,MALLATITE LTD,Civil Engineers,"Economic Growth, Investment and Sustainability",Debits Goods Received,,02/06/2014,"1,269.90"
470570,PG FABRICATIONS,Multiple Heads of Service,Multiple Strategic Directorates,Tax Retained Sub Contractors,,02/06/2014,-84
470570,PG FABRICATIONS,Technical,Places,Sub-contractor Services,,02/06/2014,625
470570,PREMIER WASTE (UK) LTD,Technical,Places,Sub-contractor Services,,02/06/2014,"1,452.88"
470570,REDDIPAK LIMITED,Civil Engineers,"Economic Growth, Investment and Sustainability",Debits Goods Received,,02/06/2014,864.6
470571,AGGREGATE INDUSTRIES UK LIMITED,Technical,Places,General Materials,,09/06/2014,"1,672.05"
470571,ARCO LIMITED,Civil Engineers,"Economic Growth, Investment and Sustainability",Debits Goods Received,,09/06/2014,633.94
470571,ARCO LIMITED,Environmental Services,Places,General Materials,,09/06/2014,49.95
470571,ARCO LIMITED,Sustainable Growth,Places,General Materials,,09/06/2014,86.66
470571,ARCO LIMITED,Technical,Places,General Materials,,09/06/2014,67.13
470571,CONTAINER COMPONENTS EUROPE LIMITED,Technical,Places,General Materials,,09/06/2014,"1,685.00"
470571,DRAIN ALERT,Technical,Places,General Materials,,09/06/2014,"2,970.00"
470571,EAGLE CIVIL ENGINEERING LTD,Technical,Places,Sub-contractor Services,,09/06/2014,"44,204.67"
470571,FAILSWORTH TRAINING SERVICES LTD,Technical,Places,Training Course Costs,,09/06/2014,"1,170.00"
470571,INSTARMAC GROUP PLC,Civil Engineers,"Economic Growth, Investment and Sustainability",Debits Goods Received,,09/06/2014,"2,037.28"
470571,MARWOOD ELECTRICAL CO,Civil Engineers,"Economic Growth, Investment and Sustainability",Debits Goods Received,,09/06/2014,"1,276.25"
470571,P CASEY (ENVIRO) LTD,Technical,Places,General Materials,,09/06/2014,"2,721.18"
470571,PG FABRICATIONS,Multiple Heads of Service,Multiple Strategic Directorates,Tax Retained Sub Contractors,,09/06/2014,-309.16
470571,PG FABRICATIONS,Technical,Places,General Materials,,09/06/2014,74
470571,PG FABRICATIONS,Technical,Places,Sub-contractor Services,,09/06/2014,"4,980.00"
470571,REDDIPAK LIMITED,Civil Engineers,"Economic Growth, Investment and Sustainability",Debits Goods Received,,09/06/2014,838.4
470571,SMITH BROS CAER CONAN WHOLESALE LTD,Civil Engineers,"Economic Growth, Investment and Sustainability",Debits Goods Received,,09/06/2014,610
470571,SMITH BROS CAER CONAN WHOLESALE LTD,Technical,Places,Discounts Taken,,09/06/2014,-15.25
470571,TARMAC CENTRAL LIMITED,Civil Engineers,"Economic Growth, Investment and Sustainability",Debits Goods Received,,09/06/2014,"2,065.61"
470571,VIATEC UK,Technical,Places,General Materials,,09/06/2014,"1,276.00"
470572,ACE SAFETY ACADEMY,Technical,Places,Training Course Costs,,16/06/2014,500
470572,AGGREGATE INDUSTRIES UK LIMITED,Technical,Places,General Materials,,16/06/2014,"2,490.84"
470572,AMBERON LTD,Technical,Places,Additional Hire,,16/06/2014,"3,918.57"
470572,ARCO LIMITED,Civil Engineers,"Economic Growth, Investment and Sustainability",Debits Goods Received,,16/06/2014,506.38
470572,ARCO LIMITED,Sustainable Growth,Places,General Materials,,16/06/2014,12.03
470572,ARCO LIMITED,Technical,Places,General Materials,,16/06/2014,50
470572,BLOK N MESH UK LTD,Technical,Places,General Materials,,16/06/2014,753.5
470572,BROXAP LIMITED,Technical,Places,General Materials,,16/06/2014,"1,262.00"
470572,CBS (NORTH WEST) LTD,Technical,Places,Sub-contractor Services,,16/06/2014,"2,387.00"
470572,EAGLE CIVIL ENGINEERING LTD,Technical,Places,Sub-contractor Services,,16/06/2014,"13,864.83"
470572,GENERAL UTILITIES NORTHWEST LTD,Multiple Heads of Service,Multiple Strategic Directorates,Tax Retained Sub Contractors,,16/06/2014,-624
470572,GENERAL UTILITIES NORTHWEST LTD,Technical,Places,Sub-contractor Services,,16/06/2014,"3,120.00"
470572,GEOSYNTHETICS,Technical,Places,General Materials,,16/06/2014,"1,178.72"
470572,J HOPKINS CONTRACTORS  LTD,Civil Engineers,"Economic Growth, Investment and Sustainability",Debits Goods Received,,16/06/2014,"1,011.43"
470572,P CASEY (ENVIRO) LTD,Technical,Places,Sub-contractor Services,,16/06/2014,"3,567.48"
470572,P F CUSACK LTD,Civil Engineers,"Economic Growth, Investment and Sustainability",Debits Goods Received,,16/06/2014,570.2
470572,SECURETASK SECURITY LTD,Technical,Places,Sub-contractor Services,,16/06/2014,785.76
470572,TARMAC CENTRAL LIMITED,Civil Engineers,"Economic Growth, Investment and Sustainability",Debits Goods Received,,16/06/2014,"2,291.96"
470572,TARMAC CENTRAL LIMITED,Technical,Places,General Materials,,16/06/2014,846.51
470572,VAISALA LTD,Consolidated Revenue Account,Director of Finance,General Materials,,16/06/2014,595
470572,VIRIDOR,Technical,Places,Sub-contractor Services,,16/06/2014,"12,034.56"
470573,ACE SAFETY ACADEMY,Technical,Places,Training Course Costs,,23/06/2014,"1,015.00"
470573,ACORN LIGHTING SERVICES LTD,Technical,Places,Sub-contractor Services,,23/06/2014,"3,600.00"
470573,ARCO LIMITED,Civil Engineers,"Economic Growth, Investment and Sustainability",Debits Goods Received,,23/06/2014,631.89
470573,ARCO LIMITED,Sustainable Growth,Places,General Materials,,23/06/2014,136.47
470573,ARCO LIMITED,Technical,Places,General Materials,,23/06/2014,176.26
470573,ATLAS TRADING GROUP LTD,Technical,Places,General Materials,,23/06/2014,911.04
470573,CASTINGS SERVICES NW LTD,Civil Engineers,"Economic Growth, Investment and Sustainability",Debits Goods Received,,23/06/2014,915.1
470573,GRAFTON MERCHANTING GB LTD,Civil Engineers,"Economic Growth, Investment and Sustainability",Debits Goods Received,,23/06/2014,946.5
470573,KENNY BROTHERS,Technical,Places,Sub-contractor Services,,23/06/2014,"7,940.64"
470573,P CASEY (ENVIRO) LTD,Technical,Places,Sub-contractor Services,,23/06/2014,"8,611.80"
470573,P F CUSACK LTD,Civil Engineers,"Economic Growth, Investment and Sustainability",Debits Goods Received,,23/06/2014,512.34
470573,PG FABRICATIONS,Multiple Heads of Service,Multiple Strategic Directorates,Tax Retained Sub Contractors,,23/06/2014,-24
470573,PG FABRICATIONS,Technical,Places,General Materials,,23/06/2014,"9,240.00"
470573,PG FABRICATIONS,Technical,Places,Sub-contractor Services,,23/06/2014,400
470573,REDDIPAK LIMITED,Neighbourhoods & Communities,"Community, Adult & Adults Early Intervention",General Materials,,23/06/2014,838.4
470573,STAINTON METAL CO LTD,Technical,Places,General Materials,,23/06/2014,730
470573,W DAVENPORT,Multiple Heads of Service,Multiple Strategic Directorates,Tax Retained Sub Contractors,Business Payment,23/06/2014,-148.4
470573,W DAVENPORT,Technical,Places,Sub-contractor Services,Business Payment,23/06/2014,742
470573,WOLSELEY UK LTD,Technical,Places,General Materials,,23/06/2014,662.37
3250460,ARNOLD PLANT HIRE LTD,Technical,Places,Additional Hire,,05/06/2014,"1,034.00"
3250460,ARNOLD PLANT HIRE LTD,Technical,Places,General Materials,,05/06/2014,160.5
3250460,DENNIS EAGLE LTD,Technical,Places,General Materials,,05/06/2014,"1,902.30"
3250460,DENNIS EAGLE LTD,Transport,"Economic Growth, Investment and Sustainability",Debits Goods Received,,05/06/2014,151.71
3250460,F & G COMMERCIALS (OLDHAM) LIMITED,Technical,Places,General Materials,,05/06/2014,"1,124.57"
3250460,GUNN JCB LTD,Technical,Places,General Materials,,05/06/2014,779.43
3250460,HI-Q TYRESERVICES,Technical,Places,Tyre Costs,,05/06/2014,"4,615.35"
3250460,JOHNSTON SWEEPERS LTD,Technical,Places,General Materials,,05/06/2014,"1,510.57"
3250460,MAPLE FLEET SERVICES LIMITED,Technical,Places,General Materials,,05/06/2014,925
3250460,OLDHAM RADIATORS LTD,Technical,Places,General Materials,,05/06/2014,598
3250460,SGM CONTRACTS LLP,Technical,Places,Additional Hire,,05/06/2014,"1,350.00"
3250461,ATS EUROMASTER LTD,Technical,Places,Tyre Costs,,12/06/2014,"3,722.82"
3250461,BRENNTAG UK LIMITED,Transport,"Economic Growth, Investment and Sustainability",Fuel / Ad Blu,,12/06/2014,728.58
3250461,CLOSE INVOICE FINANCE LTD,Technical,Places,General Materials,,12/06/2014,718.8
3250461,DENNIS EAGLE LTD,Technical,Places,General Materials,,12/06/2014,"2,323.02"
3250461,DENNIS EAGLE LTD,Transport,"Economic Growth, Investment and Sustainability",Debits Goods Received,,12/06/2014,117.48
3250461,ECODRIVE TRANSMISSIONS LTD,Technical,Places,General Materials,,12/06/2014,540
3250461,F & G COMMERCIALS (OLDHAM) LIMITED,Technical,Places,General Materials,,12/06/2014,"1,225.80"
3250461,F G ROWLAND LTD,Technical,Places,Core Hire,,12/06/2014,845
3250461,FREIGHT TRANSPORT ASSOCIATION,Technical,Places,Training Course Costs,,12/06/2014,515
3250461,G B OILS TA CARLTON FUELS,Transport,"Economic Growth, Investment and Sustainability",Diesel Fuel,,12/06/2014,"22,462.59"
3250461,HI-Q TYRESERVICES,Technical,Places,Tyre Costs,,12/06/2014,"2,837.35"
3250461,MANCHESTER VAN HIRE LTD,Technical,Places,Additional Hire,,12/06/2014,682
3250461,MANCHESTER VAN HIRE LTD,Technical,Places,Core Hire,,12/06/2014,798.16
3250461,N A BROWN LTD,Transport,"Economic Growth, Investment and Sustainability",Debits Goods Received,,12/06/2014,"1,104.00"
3250461,SHB HIRE LTD,Technical,Places,Additional Hire,,12/06/2014,"1,210.00"
3250461,SHB HIRE LTD,Technical,Places,Core Hire,,12/06/2014,"13,694.25"
3250462,F & G COMMERCIALS (OLDHAM) LIMITED,Technical,Places,General Materials,,19/06/2014,"1,000.34"
3250462,F. R. SHARROCK LIMITED,Technical,Places,General Materials,,19/06/2014,0.04
3250462,F. R. SHARROCK LIMITED,Transport,"Economic Growth, Investment and Sustainability",Debits Goods Received,,19/06/2014,"1,247.66"
3250462,FAUN ZOELLER (UK) LTD,Technical,Places,General Materials,,19/06/2014,631.31
3250462,G B OILS TA CARLTON FUELS,Transport,"Economic Growth, Investment and Sustainability",Diesel Fuel,,19/06/2014,"22,270.50"
3250462,G B OILS TA CARLTON FUELS,Transport,"Economic Growth, Investment and Sustainability",Gas - Oil Fuel,,19/06/2014,"5,818.96"
3250462,HI-WAY COMPONENTS,Technical,Places,General Materials,,19/06/2014,346.22
3250462,HI-WAY COMPONENTS,Transport,"Economic Growth, Investment and Sustainability",Debits Goods Received,,19/06/2014,373.36
3250462,JOHNSTON SWEEPERS LTD,Technical,Places,General Materials,,19/06/2014,"2,491.70"
3250462,TERBERG MATEC UK LTD,Technical,Places,General Materials,,19/06/2014,584.5
3250463,BURNT TREE GROUP LIMITED,Technical,Places,Additional Hire,,27/06/2014,"3,344.00"
3250463,BURNT TREE GROUP LIMITED,Technical,Places,Core Hire,,27/06/2014,"1,254.00"
3250463,BURNT TREE GROUP LIMITED,Technical,Places,General Materials,,27/06/2014,255
3250463,DENNIS EAGLE LTD,Technical,Places,General Materials,,27/06/2014,"2,181.37"
3250463,DENNIS EAGLE LTD,Technical,Places,Tyre Costs,,27/06/2014,94.56
3250463,F & G COMMERCIALS (OLDHAM) LIMITED,Technical,Places,General Materials,,27/06/2014,"1,707.08"
3250463,F. R. SHARROCK LIMITED,Technical,Places,General Materials,,27/06/2014,737.49
3250463,G B OILS TA CARLTON FUELS,Transport,"Economic Growth, Investment and Sustainability",Diesel Fuel,,27/06/2014,"10,710.00"
3250463,G B OILS TA CARLTON FUELS,Transport,"Economic Growth, Investment and Sustainability",Petrol Fuel,,27/06/2014,"2,686.07"
3250463,GIBSONS GARDEN MACHINERY LIMITED,Transport,"Economic Growth, Investment and Sustainability",Debits Goods Received,,27/06/2014,791.04
3250463,GUNN JCB LTD,Technical,Places,General Materials,,27/06/2014,842.66
3250463,I H S HOSEMASTER,Technical,Places,General Materials,,27/06/2014,"1,339.45"
3250463,JOHNSTON SWEEPERS LTD,Technical,Places,General Materials,,27/06/2014,674.63
3250463,N A BROWN LTD,Transport,"Economic Growth, Investment and Sustainability",Debits Goods Received,,27/06/2014,"1,208.00"
3250463,NTM LINKTIP LTD,Technical,Places,General Materials,,27/06/2014,"1,088.30"
3250463,NU FIRE & SECURITY LTD,Technical,Places,Building Repairs,,27/06/2014,720
3250463,PEAK PARTS,Technical,Places,Consumable Materials,,27/06/2014,795.82
3250463,SPECTRUM PLANT HIRE,Technical,Places,General Materials,,27/06/2014,625.38
3250463,THOMAS HARDIE,Technical,Places,General Materials,Business Payment,27/06/2014,662.62
3250463,TOLLAND PRECISION ENGINEERING LTD,Technical,Places,General Materials,,27/06/2014,710
3250463,VERSALIFT DISTRIBUTORS (UK) LTD,Technical,Places,General Materials,,27/06/2014,"5,770.00"
3250463,WARRINGTON TRUCK PARTS LTD,Technical,Places,General Materials,,27/06/2014,974.87
5137966,CBS (NORTH WEST) LTD,Operations,Places,Building Repairs,,23/06/2014,657.08
5144860,UNITED UTILITIES WATER LTD,Operations,Places,Refreshments,,23/06/2014,609.96
5144861,UNITED UTILITIES WATER LTD,Operations,Places,Refreshments,,23/06/2014,609.96
5146824,NETWORK CONNECT LTD,ICT Services,Places,Computer Hardware Maintenance Costs,,25/06/2014,"10,000.00"
5150377,LINDA RUNDLE ASSOCIATES LTD   (iAB),Education Services,Childrens Services,Subscriptions,,11/06/2014,750
5153441,LUBBE & SONS (BULBS) LTD,Operations,Places,General Materials,,23/06/2014,"2,100.00"
5153874,SOLIHULL APPROACH - PART OF HEART OF ENGLAND NHS FT,Public Health,Public Health,Training Course Costs,,12/06/2014,"5,537.00"
5154650,LGBT YOUTH NORTH WEST,You Choose,Director of Governance,Training Course Costs,,16/06/2014,"1,000.00"
5154889,CANAL & RIVER TRUST,Engineers Client,"Economic Growth, Investment and Sustainability",Fees,,02/06/2014,"1,928.90"
5155035,MIKE MOLONEY,Adult Services,"Community, Adult & Adults Early Intervention",Painting Works,Business Payment,11/06/2014,560
5155590,CHW LODGINGS LTD,Adult Services,"Community, Adult & Adults Early Intervention",Homecare Fees,,18/06/2014,"1,714.28"
5155899,TAMESIDE CITIZENS ADVICE BUREAU,Neighbourhoods & Communities,"Community, Adult & Adults Early Intervention",Grants to Citizens' Advice Bureau,,05/06/2014,"78,035.00"
5155926,DISTRICT SURVEYORS ASSOCIATION LTD T/A LABC,Sustainable Growth,Places,Subscriptions,,16/06/2014,"2,389.84"
5155946,THE FURNISHING SERVICE LTD,Neighbourhoods & Communities,"Community, Adult & Adults Early Intervention",Fixtures & Fittings Purchase,,18/06/2014,"1,146.84"
5156074,ELECTRICITY NORTH WEST LTD,Engineers Client,"Economic Growth, Investment and Sustainability",Highway Construction,,16/06/2014,"1,024.97"
5156428,UNITED UTILITIES WATER LTD,Operations,Places,Refreshments,,23/06/2014,609.96
5157271,ALERE LTD,Public Health,Public Health,Professional Services,,18/06/2014,"3,657.69"
5157707,M.C. & M.A. STEWART HAULAGE LTD,Operations,Places,General Materials,,23/06/2014,"1,233.75"
5157708,M.C. & M.A. STEWART HAULAGE LTD,Operations,Places,General Materials,,23/06/2014,"1,720.00"
5157736,UPDATA INFRASTRUCTURE UK LTD,Multiple Heads of Service,Multiple Strategic Directorates,Communications Equipment,,02/06/2014,660
5157737,UPDATA INFRASTRUCTURE UK LTD,Multiple Heads of Service,Multiple Strategic Directorates,Communications Equipment,,02/06/2014,660
5157963,DELTASCHEME LTD,ICT Services,Places,Computer Software,,04/06/2014,870
5158130,NPOWER LIMITED,Tameside Investment Partnership,Places,Electricity,,11/06/2014,726.33
5158399,,Children's Services,Childrens Services,Foster Carer Agency Fees,Redacted Supplier,11/06/2014,"4,185.00"
5158402,EGBERT H TAYLOR & CO,Environmental Services,Places,Waste Disposal Fees,,25/06/2014,"5,204.40"
5158501,DELL SOFTWARE UK LTD,ICT Services,Places,Computer Software,,05/06/2014,"2,482.00"
5158532,ENVIRONMENT AGENCY NW,Technical,Places,Land Drainage Levy,,27/06/2014,"25,913.75"
5158568,GREATER MANCHESTER COMBINED AUTHORITY,Technical,Places,Passenger Transport Levy,,09/06/2014,"1,614,500.00"
5158681,PHS GROUP PLC,Environmental Services,Places,Sub-contractor Services,,09/06/2014,"2,079.40"
5158705,NEW CHARTER HOUSING TRUST GROUP,Neighbourhoods & Communities,"Community, Adult & Adults Early Intervention",Lettings/Waiting List,,23/06/2014,"7,848.62"
5158716,GREATER MANCHESTER WASTE DISPOSAL AUTH.,Environmental Services,Places,GMC Waste Disposal Levy,,18/06/2014,"1,478,750.00"
5158752,TRAFFORD MBC,Children's Services,Childrens Services,"Marketing, Publicity and Recruitment",,04/06/2014,"2,200.00"
5158809,NPOWER LIMITED,Tameside Investment Partnership,Places,Electricity,,11/06/2014,618.85
5158856, ,Children's Services,Childrens Services,Childrens Homes Outside Local Authority Fees,Redacted Supplier,04/06/2014,"11,049.29"
5158869,CALLROUND LIMITED,Education Services,Childrens Services,Professional Services,,05/06/2014,"1,600.00"
5158873,,Children's Services,Childrens Services,Foster Carer Agency Fees,Redacted Supplier,11/06/2014,"4,111.83"
5158967,LIFELINE PROJECT LTD (PH),Public Health,Public Health,Professional Services,,05/06/2014,"24,989.00"
5159045,,Children's Services,Childrens Services,Foster Carer Agency Fees,Redacted Supplier,12/06/2014,800
5159065,NPOWER LIMITED,Technical,Places,Electricity,,11/06/2014,"1,563.31"
5159335,ELECTRICITY NORTH WEST (CONSTRUCTION AND MAINTENANCE) LTD,Tameside Investment Partnership,Places,Electricity,,02/06/2014,562
5159339,VODAFONE,Multiple Heads of Service,Multiple Strategic Directorates,Debits,,16/06/2014,"2,750.00"
5159345,AIR SOCIAL CARE,Children's Services,Childrens Services,Agency Staff,,05/06/2014,"1,480.00"
5159350,VODAFONE,Multiple Heads of Service,Multiple Strategic Directorates,Debits,,18/06/2014,"1,890.18"
5159374,SPECIALISED HOMES AND LODGINGS LTD,SCYP ,Childrens Services,Living With Formal Support,,05/06/2014,750
5159395,COOLSPIRIT LTD,ICT Services,Places,It Equipment,,05/06/2014,"1,351.76"
5159472,TAMESIDE RADIO,Technical,Places,Statutory Advertising,,18/06/2014,600
5159608,HARTTRON  LTD,Engineers Client,"Economic Growth, Investment and Sustainability",Street Lighting Works,,16/06/2014,"2,916.00"
5159630,ARCO LIMITED,Environmental Services,Places,Protective Clothing,,16/06/2014,"4,959.24"
5159659,SHAW & SONS LTD,Borough Solicitor,Director of Governance,Printing And Stationery,,05/06/2014,900
5159660,SHAW & SONS LTD,Borough Solicitor,Director of Governance,Printing And Stationery,,12/06/2014,"2,607.00"
5159693, ,Children's Services,Childrens Services,Childrens Homes Outside Local Authority Fees,Redacted Supplier,02/06/2014,"12,428.53"
5159882,MRL HEALTHCARE LIMITED,Adult Services,"Community, Adult & Adults Early Intervention",Homecare Fees,,04/06/2014,"12,455.45"
5159923,HANDICARE LIMITED,Housing,"Economic Growth, Investment and Sustainability",Improvement Grants - Final Mandatory,,02/06/2014,"2,055.00"
5159929,IN CONTROL PARTNERSHIP,Adult Services,"Community,Environmental,Adult and Health Services",General Expenditure,,02/06/2014,"20,000.00"
5159942,CREATIVE SUPPORT LTD,Adult Services,"Community, Adult & Adults Early Intervention",Homecare Fees,,02/06/2014,"84,992.92"
5159944,CREATIVE SUPPORT LTD,Adult Services,"Community, Adult & Adults Early Intervention",Homecare Fees,,02/06/2014,"124,890.83"
5159946,CREATIVE SUPPORT LTD,Adult Services,"Community, Adult & Adults Early Intervention",Homecare Fees,,02/06/2014,"79,445.25"
5159948,CREATIVE SUPPORT LTD,Adult Services,"Community, Adult & Adults Early Intervention",Independent Sector Care Fees,,04/06/2014,"67,669.36"
5159949,ELECTRICITY NORTH WEST LTD,Technical,Places,Footway Crossing Expenditure Engineers Recharge,,09/06/2014,609.99
5159962,ADONI SOFTWARE,ICT Services,Places,Computer Software,,05/06/2014,962.5
5159998,DEVERE VILLAGE URBAN RESORTS,Other Services,Director of Finance,Other Accomodation Related Costs,,09/06/2014,"2,215.04"
5159999,DEVERE VILLAGE URBAN RESORTS,Other Services,Director of Finance,Other Accomodation Related Costs,,09/06/2014,"2,841.78"
5160000,DEVERE VILLAGE URBAN RESORTS,Other Services,Director of Finance,Other Accomodation Related Costs,,09/06/2014,"1,979.17"
5160016,TURNING POINT SERVICES LTD,Adult Services,"Community, Adult & Adults Early Intervention",Independent Sector Care Fees,,02/06/2014,"46,566.67"
5160019,TYNETEC,Adult Services,"Community, Adult & Adults Early Intervention",Purchase General Office Equipment,,11/06/2014,"6,515.95"
5160028,THE FURNISHING SERVICE LTD,Neighbourhoods & Communities,"Community, Adult & Adults Early Intervention",Fixtures & Fittings Purchase,,05/06/2014,807.44
5160033,THE FURNISHING SERVICE LTD,Neighbourhoods & Communities,"Community, Adult & Adults Early Intervention",Fixtures & Fittings Purchase,,05/06/2014,777.61
5160035,,Children's Services,Childrens Services,Foster Carer Agency Fees,Redacted Supplier,12/06/2014,799
5160037,ADVENTURE BASED LEARNING,Neighbourhoods & Communities,"Community, Adult & Adults Early Intervention",Professional Entertainment Services,,09/06/2014,"1,440.00"
5160104,STAFF CARE SERVICES,Adult Services,"Community, Adult & Adults Early Intervention",Professional Consultancy Services,,12/06/2014,"1,350.00"
5160104,STAFF CARE SERVICES,Adult Services,"Community, Adult & Adults Early Intervention",Staff Travel Costs,,12/06/2014,57.12
5160114,THE FURNISHING SERVICE LTD,Neighbourhoods & Communities,"Community, Adult & Adults Early Intervention",Fixtures & Fittings Purchase,,05/06/2014,598.16
5160115,DOMAIN CARE NORTH WEST LTD,Adult Services,"Community, Adult & Adults Early Intervention",Homecare Fees,,04/06/2014,"4,480.00"
5160119,THE FURNISHING SERVICE LTD,Neighbourhoods & Communities,"Community, Adult & Adults Early Intervention",Fixtures & Fittings Purchase,,11/06/2014,551.69
5160127,MR NICHOLAS ASHTON,Other Services,Director of Finance,Other Accomodation Related Costs,Business Payment,04/06/2014,800
5160128,DOMAIN CARE NORTH WEST LTD,Adult Services,"Community, Adult & Adults Early Intervention",Homecare Fees,,02/06/2014,"2,300.00"
5160129,,Children's Services,Childrens Services,Foster Carer Agency Fees,Redacted Supplier,05/06/2014,800
5160132,IMPRESSION (BOLTON) LTD,Neighbourhoods & Communities,"Community, Adult & Adults Early Intervention",Contingency Provisions,,16/06/2014,836
5160240,MCI DIVENTI LTD,ICT Services,Places,It Equipment,,05/06/2014,795
5160263,AIR SOCIAL CARE,Children's Services,Childrens Services,Agency Staff,,11/06/2014,740
5160282,SOCIAL CARE NETWORK SOLUTIONS LTD,Children's Services,Childrens Services,Professional Child Services,,12/06/2014,"11,801.10"
5160298,LIQUIDLOGIC LTD,Adult Services,"Community, Adult & Adults Early Intervention",Computer Software,,12/06/2014,"20,643.13"
5160300,,Children's Services,Childrens Services,Foster Carer Agency Fees,Redacted Supplier,12/06/2014,"7,714.29"
5160301,INSIGHT DIRECT (UK)LTD,ICT Services,Places,It Equipment,,11/06/2014,670.3
5160304,RIGBY TAYLOR LTD,Operations,Places,General Materials,,11/06/2014,780
5160345,STAMFORD CARS UK LTD,Education Services,Childrens Services,Transport Of Pupils,,02/06/2014,891
5160348,STAMFORD CARS UK LTD,Education Services,Childrens Services,Transport Of Pupils,,02/06/2014,654.5
5160461,TRANSPORT FOR GREATER MANCHESTER,Technical,Places,Engineers -External,,09/06/2014,"2,100.00"
5160496,SSI SCHAEFER LTD,Environmental Services,Places,Waste Disposal Fees,,18/06/2014,"10,800.00"
5160497,SSI SCHAEFER LTD,Environmental Services,Places,Waste Disposal Fees,,18/06/2014,"18,249.00"
5160537,IN CONTROL PARTNERSHIP,Adult Services,"Community, Adult & Adults Early Intervention",Professional Consultancy Services,,12/06/2014,"4,166.66"
5160540,HANDSET SOLUTIONS LTD,ICT Services,Places,It Equipment,,12/06/2014,503.6
5160547,ROCOM,ICT Services,Places,It Equipment,,12/06/2014,"6,379.95"
5160550, ,Children's Services,Childrens Services,Childrens Homes Outside Local Authority Fees,Redacted Supplier,09/06/2014,"13,980.00"
5160551,P MCGUINNESS & CO LTD,(blank),(blank),Contractor Expenditure,,12/06/2014,964.3
5160553,LAWYERS IN LOCAL GOVERNMENT,Borough Solicitor,Director of Governance,Subscriptions,,12/06/2014,500
5160554,COMMUNITY AND VOLUNTARY ACTION TAMESIDE,Strategy & Early Intervention,Childrens Services,Professional Services,,02/06/2014,"12,500.00"
5160581,GBM DIGITAL TECHNOLOGIESLIMITED,"Media, Marketing & Communications",Director of Governance,Purchase General Office Equipment,,12/06/2014,"3,514.00"
5160583,GREAT PLACES HOUSING GROUP,Adult Services,"Community, Adult & Adults Early Intervention",Non-Authority Accommodation Rental,,09/06/2014,"1,035.20"
5160584,GREAT PLACES HOUSING GROUP,Adult Services,"Community, Adult & Adults Early Intervention",Non-Authority Accommodation Rental,,09/06/2014,"1,040.63"
5160590,PRIME LIFE LTD,Adult Services,"Community, Adult & Adults Early Intervention",Homecare Fees,,11/06/2014,"3,133.89"
5160614, ,Children's Services,Childrens Services,Childrens Homes Outside Local Authority Fees,Redacted Supplier,12/06/2014,"16,500.00"
5160615, ,Children's Services,Childrens Services,Childrens Homes Outside Local Authority Fees,Redacted Supplier,16/06/2014,"13,017.90"
5160620, ,Children's Services,Childrens Services,Childrens Homes Outside Local Authority Fees,Redacted Supplier,16/06/2014,"8,414.33"
5160649,ALTERNATIVE FUTURES GROUP,Adult Services,"Community, Adult & Adults Early Intervention",Homecare Fees,,02/06/2014,"114,392.32"
5160668,ELECTRICITY NORTH WEST LTD,Technical,Places,Reactive Works Engineers Recharge,,16/06/2014,829.99
5160752,RIGBY TAYLOR LTD,Operations,Places,General Materials,,12/06/2014,"2,340.00"
5160764,TRANSPORT FOR GREATER MANCHESTER,Education Services,Childrens Services,Transport Of Pupils,,11/06/2014,"2,297.28"
5160885, ,Education Services,Childrens Services,Voluntary Organisations Fees,Redacted Supplier,11/06/2014,"10,550.76"
5160963,THE FURNISHING SERVICE LTD,Neighbourhoods & Communities,"Community, Adult & Adults Early Intervention",Fixtures & Fittings Purchase,,05/06/2014,681.19
5160983, ,Children's Services,Childrens Services,Childrens Homes Outside Local Authority Fees,Redacted Supplier,04/06/2014,"9,600.00"
5160985, ,Children's Services,Childrens Services,Childrens Homes Outside Local Authority Fees,Redacted Supplier,04/06/2014,"9,600.00"
5161062,THE FURNISHING SERVICE LTD,Neighbourhoods & Communities,"Community, Adult & Adults Early Intervention",Fixtures & Fittings Purchase,,05/06/2014,916.64
5161090,THE FURNISHING SERVICE LTD,Neighbourhoods & Communities,"Community, Adult & Adults Early Intervention",Fixtures & Fittings Purchase,,05/06/2014,788.02
5161117,HEMMING GROUP,Children's Services,Childrens Services,"Marketing, Publicity and Recruitment",,12/06/2014,"3,500.00"
5161136,UNITED UTILITIES WATER PLC,Technical,Places,Reactive Works Engineers Recharge,,02/06/2014,609.99
5161156,ABEL EDUCATION LTD,Education Services,Childrens Services,Training Course Costs,,11/06/2014,"1,500.00"
5161173,AGGREGATE INDUSTRIES UK LIMITED,Engineers Client,"Economic Growth, Investment and Sustainability",Highway Construction,,02/06/2014,"11,531.10"
5161173,AGGREGATE INDUSTRIES UK LIMITED,Technical,Places,HRA Repairs Engineers Recharge,,02/06/2014,"15,605.32"
5161174,HMS DECORATIVE SURFACING LTD,Engineers Client,"Economic Growth, Investment and Sustainability",Road Marking Works,,02/06/2014,"17,875.83"
5161191,LEANDER ARCHITECTURAL,Engineers Client,"Economic Growth, Investment and Sustainability",Signs,,11/06/2014,"2,246.00"
5161227,TONGUE TIED (MANCHESTER) LTD,Borough Solicitor,Director of Governance,Professional Interpreter Services,,05/06/2014,995
5161228,TONGUE TIED (MANCHESTER) LTD,Children's Services,Childrens Services,Professional Interpreter Services,,04/06/2014,584
5161237,ROMPA / WINSLOW,Children's Services,Childrens Services,Purchase General Office Equipment,,09/06/2014,"7,106.79"
5161257,RUSSELL WORTH SOLICITORS,Multiple Heads of Service,Multiple Strategic Directorates,Claims Settled,,02/06/2014,"10,000.00"
5161264, ,Children's Services,Childrens Services,Living Without Formal Support,Redacted Supplier,04/06/2014,820
5161279,KIELEY BROS LTD,Engineers Client,"Economic Growth, Investment and Sustainability",Highway Construction,,19/06/2014,"1,114.48"
5161279,KIELEY BROS LTD,Technical,Places,Carriageway Surface Dressing Works,,19/06/2014,"14,125.15"
5161279,KIELEY BROS LTD,Technical,Places,Highway Improvements,,19/06/2014,834.77
5161282,STEP AHEAD RESOURCE SERVICES,SCYP ,Childrens Services,Living Without Formal Support,,02/06/2014,750
5161283,KIELEY BROS LTD,Technical,Places,HRA Repairs Engineers Recharge,,19/06/2014,"4,201.13"
5161284,STEP AHEAD RESOURCE SERVICES,SCYP ,Childrens Services,Living Without Formal Support,,02/06/2014,850
5161286,STEP AHEAD RESOURCE SERVICES,SCYP ,Childrens Services,Living Without Formal Support,,02/06/2014,850
5161290,FACILITY SOLUTIONS NORTHWEST,Other Services,Director of Finance,Security Services,,27/06/2014,"5,714.25"
5161291,FACILITY SOLUTIONS NORTHWEST,Other Services,Director of Finance,Security Services,,02/06/2014,"2,736.00"
5161332,AFTER ADOPTION,Children's Services,Childrens Services,Professional Child Services,,04/06/2014,"6,666.60"
5161333,SPECIALISED HOMES AND LODGINGS LTD,SCYP ,Childrens Services,Living With Formal Support,,04/06/2014,"2,785.71"
5161335,LOVE PR & COMMUNICATIONS LTD,Sustainable Growth,Places,Professional Services,,25/06/2014,"1,200.00"
5161338, ,Adult Services,"Community, Adult & Adults Early Intervention",Homecare Fees,Redacted Supplier,02/06/2014,"1,756.90"
5161358,,Children's Services,Childrens Services,Homecare Fees,Redacted Supplier,02/06/2014,748.8
5161359,ANVIL MASTERS,Multiple Heads of Service,Multiple Strategic Directorates,Security Equipment,,05/06/2014,"1,004.25"
5161360,VODAFONE,Adult Services,"Community, Adult & Adults Early Intervention",Telephone Landline Costs,,02/06/2014,21.2
5161360,VODAFONE,Multiple Heads of Service,Multiple Strategic Directorates,Debits,,02/06/2014,"1,029.37"
5161360,VODAFONE,Neighbourhoods & Communities,"Community, Adult & Adults Early Intervention",Telephone Landline Costs,,02/06/2014,26.29
5161360,VODAFONE,Operations,Places,Telephone Landline Costs,,02/06/2014,33.66
5161361,VODAFONE,Adult Services,"Community, Adult & Adults Early Intervention",Telephone Landline Costs,,02/06/2014,21.2
5161361,VODAFONE,Multiple Heads of Service,Multiple Strategic Directorates,Debits,,02/06/2014,"1,047.17"
5161361,VODAFONE,Neighbourhoods & Communities,"Community, Adult & Adults Early Intervention",Telephone Landline Costs,,02/06/2014,26.15
5161361,VODAFONE,Operations,Places,Telephone Landline Costs,,02/06/2014,33.65
5161362,VODAFONE,Adult Services,"Community, Adult & Adults Early Intervention",Telephone Landline Costs,,02/06/2014,21.2
5161362,VODAFONE,Multiple Heads of Service,Multiple Strategic Directorates,Debits,,02/06/2014,"1,012.32"
5161362,VODAFONE,Neighbourhoods & Communities,"Community, Adult & Adults Early Intervention",Telephone Landline Costs,,02/06/2014,26.15
5161362,VODAFONE,Operations,Places,Telephone Landline Costs,,02/06/2014,33.67
5161363,G4S CASH SOLUTIONS (UK) LIMITED,Borough Solicitor,Director of Governance,Security Services,,02/06/2014,54.32
5161363,G4S CASH SOLUTIONS (UK) LIMITED,Neighbourhoods & Communities,"Community, Adult & Adults Early Intervention",Security Services,,02/06/2014,488.84
5161365,ORANGE PCS,"Media, Marketing & Communications",Director of Governance,Mobile Telephones,,04/06/2014,"6,765.43"
5161366,ORANGE PCS,"Media, Marketing & Communications",Director of Governance,Mobile Telephones,,04/06/2014,"3,000.59"
5161377,NEW IMAGE(PUBLIC RELATIONS) LTD,Sustainable Growth,Places,Professional Services,,04/06/2014,"1,152.00"
5161380,M G DOMESTIC,Adult Services,"Community, Adult & Adults Early Intervention",Fixtures & Fittings Purchase,,02/06/2014,589.99
5161381,UPDATA INFRASTRUCTURE UK LTD,Multiple Heads of Service,Multiple Strategic Directorates,Communications Equipment,,02/06/2014,660
5161385,NEW CHARTER HOUSING TRUST GROUP,Adult Services,"Community, Adult & Adults Early Intervention",Non-Authority Accommodation Rental,,04/06/2014,"2,456.40"
5161386,NEW CHARTER HOUSING TRUST GROUP,Adult Services,"Community, Adult & Adults Early Intervention",Non-Authority Accommodation Rental,,04/06/2014,"2,456.40"
5161388,CREATIVE SUPPORT LTD,Adult Services,"Community, Adult & Adults Early Intervention",Independent Sector Care Fees,,02/06/2014,"62,774.33"
5161390,SMITH JONES SOLICITORS LTD,Multiple Heads of Service,Multiple Strategic Directorates,Claims Settled,,04/06/2014,"12,000.00"
5161395,SLEIGH SON & BOOTHS SOLICITORS,Environmental Services,"Economic Growth, Investment and Sustainability",Acquisition - Buildings,,09/06/2014,"90,000.00"
5161408,INSPIREDSPACES TAMESIDE(PROJECTCO1) LTD,Asset Mgmt & Investment Partnership Mgmt,Places,Free School Meal Costs,,11/06/2014,"5,544.00"
5161408,INSPIREDSPACES TAMESIDE(PROJECTCO1) LTD,Asset Mgmt & Investment Partnership Mgmt,Places,Professional Services,,11/06/2014,18.83
5161408,INSPIREDSPACES TAMESIDE(PROJECTCO1) LTD,Asset Mgmt & Investment Partnership Mgmt,Places,Unitary Charge Payments,,11/06/2014,"487,270.67"
5161408,INSPIREDSPACES TAMESIDE(PROJECTCO1) LTD,Asset Mgmt & Investment Partnership Mgmt,Places,Utilities,,11/06/2014,"30,618.05"
5161410,GUY WILLIAMS & LAYTON,Environmental Services,"Economic Growth, Investment and Sustainability",Acquisition - Buildings,,09/06/2014,"125,000.00"
5161411,THE BYRNE PRACTICE,Environmental Services,"Economic Growth, Investment and Sustainability",Acquisition - Buildings,,09/06/2014,"140,000.00"
5161412,INSPIREDSPACES TAMESIDE (PROJECTCO2) LTD,Asset Mgmt & Investment Partnership Mgmt,Places,Free School Meal Costs,,11/06/2014,"11,996.00"
5161412,INSPIREDSPACES TAMESIDE (PROJECTCO2) LTD,Asset Mgmt & Investment Partnership Mgmt,Places,Refreshments,,11/06/2014,"1,398.72"
5161412,INSPIREDSPACES TAMESIDE (PROJECTCO2) LTD,Asset Mgmt & Investment Partnership Mgmt,Places,Unitary Charge Payments,,11/06/2014,"811,940.45"
5161412,INSPIREDSPACES TAMESIDE (PROJECTCO2) LTD,Asset Mgmt & Investment Partnership Mgmt,Places,Utilities,,11/06/2014,"45,560.92"
5161413,INSPIREDSPACES TAMESIDE LTD,Asset Management and Investment Partnership Management,"Economic Growth, Investment and Sustainability",Refurbishment Construction Costs,,11/06/2014,"44,825.15"
5161413,INSPIREDSPACES TAMESIDE LTD,Asset Mgmt & Investment Partnership Mgmt,Places,Professional Services,,11/06/2014,"80,900.00"
5161413,INSPIREDSPACES TAMESIDE LTD,Tameside Investment Partnership,Places,Professional Services,,11/06/2014,"60,172.32"
5161414,INSPIREDSPACES TAMESIDE LTD,Asset Mgmt & Investment Partnership Mgmt,Places,Free School Meal Costs,,11/06/2014,"1,730.00"
5161414,INSPIREDSPACES TAMESIDE LTD,Asset Mgmt & Investment Partnership Mgmt,Places,Non-Authority Accommodation Rental,,11/06/2014,"33,610.83"
5161414,INSPIREDSPACES TAMESIDE LTD,Asset Mgmt & Investment Partnership Mgmt,Places,Refreshments,,11/06/2014,"1,125.18"
5161414,INSPIREDSPACES TAMESIDE LTD,Asset Mgmt & Investment Partnership Mgmt,Places,Utilities,,11/06/2014,"9,234.75"
5161415,GORVINS CLIENT ACCOUNT,Environmental Services,"Economic Growth, Investment and Sustainability",Acquisition - Buildings,,09/06/2014,"80,000.00"
5161420,HOWARD COOK,Education Services,Childrens Services,Professional Services,Business Payment,02/06/2014,680
5161422,,Children's Services,Childrens Services,Foster Carer Agency Fees,Redacted Supplier,09/06/2014,"3,301.15"
5161439,ABLE CARE AND SUPPORT SERVICES LTD,Adult Services,"Community, Adult & Adults Early Intervention",Homecare Fees,,02/06/2014,958.85
5161440,ABLE CARE AND SUPPORT SERVICES LTD,Adult Services,"Community, Adult & Adults Early Intervention",Homecare Fees,,02/06/2014,958.85
5161443,GREENSCAPE,Operations,Places,Agency Staff,,05/06/2014,"1,434.56"
5161444,GREENSCAPE,Operations,Places,Agency Staff,,05/06/2014,735.68
5161454,BANCROFT AMENITIES,District Assemblies,"Community,Environmental,Adult and Health Services",Development Monies,,04/06/2014,"15,528.00"
5161464,VILLAGE URBAN RESORTS,Other Services,Director of Finance,Other Accomodation Related Costs,,04/06/2014,"1,097.33"
5161465,VILLAGE URBAN RESORTS,Other Services,Director of Finance,Other Accomodation Related Costs,,04/06/2014,"1,081.79"
5161474,VILLAGE URBAN RESORTS,Other Services,Director of Finance,Other Accomodation Related Costs,,04/06/2014,"1,158.33"
5161475,TAMESIDE HOSPITAL NHS FOUNDATION TRUST,Public Health,Public Health,Professional Services,,09/06/2014,"6,375.00"
5161485,ADDICTION DEPENDENCY SOLUTIONS (ADS),Public Health,Public Health,Professional Services,,04/06/2014,"26,772.25"
5161487,ACOUSTIC & ENGINEERING CONSULTANTS LIMITED,Engineers Client,"Economic Growth, Investment and Sustainability",External  Consultants,,18/06/2014,900
5161494,ALPHA PLUS FOSTERING LIMITED,Children's Services,Childrens Services,Childrens Homes Outside Local Authority Fees,,09/06/2014,697.4
5161497,UNITED UTILITIES WATER PLC,Operations,Places,Water Rates,,05/06/2014,"1,541.04"
5161501,ACOUSTIC & ENGINEERING CONSULTANTS LIMITED,Engineers Client,"Economic Growth, Investment and Sustainability",Professional Consultancy Services,,16/06/2014,700
5161528,AIR SOCIAL CARE,Children's Services,Childrens Services,Agency Staff,,12/06/2014,"1,060.00"
5161540,ROYAL MAIL GROUP PLC,Exchequer,Director of Finance,Postages,,12/06/2014,"1,889.05"
5161547,NPOWER LIMITED,Tameside Investment Partnership,Places,Electricity,,11/06/2014,"21,146.22"
5161564,THORNEYCROFT SOLICITORS,Multiple Heads of Service,Multiple Strategic Directorates,Claims Settled,,04/06/2014,"5,500.00"
5161565,DWP,Multiple Heads of Service,Multiple Strategic Directorates,Claims Settled,,04/06/2014,600
5161573,VODAFONE,Asset Mgmt & Investment Partnership Mgmt,Places,Telephone Landline Costs,,05/06/2014,946.02
5161581,EON ENERGY,Technical,Places,Electricity,,09/06/2014,"2,712.52"
5161593,UNITED UTILITIES WATER PLC,Tameside Investment Partnership,Places,Metered Water Costs,,11/06/2014,756.14
5161594,CORONA ENERGY RETAIL 4 LIMITED,Tameside Investment Partnership,Places,Gas,,11/06/2014,"4,444.01"
5161600,CORONA ENERGY RETAIL 4 LIMITED,Tameside Investment Partnership,Places,Gas,,11/06/2014,634.9
5161603,NPOWER LIMITED,Tameside Investment Partnership,Places,Electricity,,11/06/2014,575.02
5161607,NEW CHARTER HOUSING TRUST GROUP,Strategy & Early Intervention,Childrens Services,Professional Services,,05/06/2014,"48,200.00"
5161627,TRANSITIONAL PLUS CARE CIC LTD,SCYP ,Childrens Services,Living With Formal Support,,04/06/2014,"5,357.14"
5161631,CASH BOX CREDIT UNION,Neighbourhoods & Communities,"Community, Adult & Adults Early Intervention",Emergency Grant Payments,,12/06/2014,"20,000.00"
5161638,CASH BOX CREDIT UNION LTD,Neighbourhoods & Communities,"Community, Adult & Adults Early Intervention",Professional Services,,05/06/2014,"5,333.33"
5161644,CORONA ENERGY RETAIL 4 LIMITED,Tameside Investment Partnership,Places,Gas,,11/06/2014,"1,188.40"
5161646,WINDMILL GROUP,Technical,Places,Engineers Works,,18/06/2014,"10,922.50"
5161648,A E YATES LTD,Engineers Client,"Economic Growth, Investment and Sustainability",Engineers -External,,09/06/2014,"3,573.94"
5161656,CORONA ENERGY RETAIL 4 LIMITED,Tameside Investment Partnership,Places,Gas,,11/06/2014,513.45
5161660,CORONA ENERGY RETAIL 4 LIMITED,Tameside Investment Partnership,Places,Gas,,11/06/2014,753.2
5161676,TAMESIDE BLINDS,Children's Services,Childrens Services,Other Accomodation Related Costs,,05/06/2014,853
5161684,CORONA ENERGY RETAIL 4 LIMITED,Tameside Investment Partnership,Places,Gas,,11/06/2014,834.01
5161686,CORONA ENERGY RETAIL 4 LIMITED,Tameside Investment Partnership,Places,Gas,,11/06/2014,"2,069.49"
5161705, ,Environmental Services,Places,Interment Fee Income,Redacted Supplier,09/06/2014,805
5161713, ,Adult Services,"Community, Adult & Adults Early Intervention",Residential Home Short Stay Fees,Redacted Supplier,05/06/2014,883.26
5161732,TRAVELERS INSURANCE COMPANY LTD,Multiple Heads of Service,Multiple Strategic Directorates,Reimbursement Paid To Insurers,,09/06/2014,"23,269.04"
5161736,PAYPARTNERS LTD (MONTHLY),Adult Services,"Community, Adult & Adults Early Intervention",Sub-contractor Services,,18/06/2014,"5,474.00"
5161749,H M REVENUE & CUSTOMS,Environmental Services,"Economic Growth, Investment and Sustainability",Stamp Duty,,09/06/2014,"1,400.00"
5161751,TAMESIDE ARTS LTD,Adult Services,"Community, Adult & Adults Early Intervention",Professional Services,,18/06/2014,948.6
5161759,CORONA ENERGY RETAIL 4 LIMITED,Tameside Investment Partnership,Places,Gas,,11/06/2014,"1,314.90"
5161762,TAMESIDE ARTS LTD,Adult Services,"Community, Adult & Adults Early Intervention",Professional Services,,18/06/2014,948.6
5161766,CORONA ENERGY RETAIL 4 LIMITED,Tameside Investment Partnership,Places,Gas,,11/06/2014,"1,925.71"
5161774,CORONA ENERGY RETAIL 4 LIMITED,Tameside Investment Partnership,Places,Gas,,11/06/2014,506.31
5161788,STEP AHEAD RESOURCE SERVICES,SCYP ,Childrens Services,Living Without Formal Support,,04/06/2014,750
5161799,STEP AHEAD RESOURCE SERVICES,SCYP ,Childrens Services,Living Without Formal Support,,04/06/2014,750
5161805,STEP AHEAD RESOURCE SERVICES,SCYP ,Childrens Services,Living Without Formal Support,,04/06/2014,750
5161809,STEP AHEAD RESOURCE SERVICES,Children's Services,Childrens Services,Living Without Formal Support,,04/06/2014,850
5161819,PERSON CENTRED CARE SERVICES LIMITED,Adult Services,"Community, Adult & Adults Early Intervention",Homecare Fees,,09/06/2014,"1,888.38"
5161824,NIELSEN BOOK SERVICES LTD.,Neighbourhoods & Communities,"Community, Adult & Adults Early Intervention",Computer Software,,11/06/2014,"2,200.00"
5161832,THE FURNISHING SERVICE LTD,Neighbourhoods & Communities,"Community, Adult & Adults Early Intervention",Fixtures & Fittings Purchase,,04/06/2014,586.75
5161833,ADVOCACY EXPERIENCE LTD,Adults Early Intervention,"Community, Adult & Adults Early Intervention",Professional Services,,18/06/2014,"7,518.62"
5161834,ADVOCACY EXPERIENCE LTD,Adults Early Intervention,"Community, Adult & Adults Early Intervention",Professional Services,,18/06/2014,"7,518.62"
5161839,PERSON CENTRED CARE SERVICES LIMITED,Adult Services,"Community, Adult & Adults Early Intervention",Homecare Fees,,09/06/2014,"1,980.77"
5161844,THE FURNISHING SERVICE LTD,Neighbourhoods & Communities,"Community, Adult & Adults Early Intervention",Fixtures & Fittings Purchase,,09/06/2014,766.51
5161845,SPACEHOUSE LIMITED,Children's Services,Childrens Services,"Marketing, Publicity and Recruitment",,16/06/2014,750
5161862, ,Children's Services,Childrens Services,Childrens Homes Outside Local Authority Fees,Redacted Supplier,04/06/2014,"4,698.14"
5161863,THE FURNISHING SERVICE LTD,Neighbourhoods & Communities,"Community, Adult & Adults Early Intervention",Fixtures & Fittings Purchase,,04/06/2014,999.03
5161864,THE FURNISHING SERVICE LTD,Neighbourhoods & Communities,"Community, Adult & Adults Early Intervention",Fixtures & Fittings Purchase,,04/06/2014,565.63
5161869,THE FURNISHING SERVICE LTD,Neighbourhoods & Communities,"Community, Adult & Adults Early Intervention",Fixtures & Fittings Purchase,,09/06/2014,505.28
5161874,THE FURNISHING SERVICE LTD,Neighbourhoods & Communities,"Community, Adult & Adults Early Intervention",Fixtures & Fittings Purchase,,04/06/2014,509.64
5161876,TAMESIDE SPORTS TRUST,Strategy & Early Intervention,Childrens Services,Personal Needs Entertainments & Holidays,,12/06/2014,"2,396.00"
5161882,NORTHGATE INFORMATION SOLUTIONS UK LTD,Sustainable Growth,Places,Computer Hardware Maintenance Costs,,04/06/2014,"1,438.58"
5161884, ,Children's Services,Childrens Services,Homecare Fees,Redacted Supplier,04/06/2014,998
5161886,TORDAN HEALTHCARE LTD,Children's Services,Childrens Services,Homecare Fees,,04/06/2014,739.5
5161900,NORTHENDEN TRAVEL LTD,Democratic Processes,Director of Finance,Member Travel Costs,,09/06/2014,505.2
5161910,ALLIANCE DISPOSABLES LTD,Adult Services,"Community, Adult & Adults Early Intervention",Cleaning Materials,,09/06/2014,628
5161915,TORDAN HEALTHCARE LTD,Children's Services,Childrens Services,Homecare Fees,,04/06/2014,536.5
5161919,AD HOC CHAPS PAYMENT,Education Services,Childrens Services,Furniture Removal Fees,,11/06/2014,"16,180.00"
5161919,AD HOC CHAPS PAYMENT,Tameside Investment Partnership,Places,Furniture Removal Fees,,11/06/2014,"17,615.00"
5161929,CATER WALSH REPORTING LTD,Children's Services,Childrens Services,Professional Interpreter Services,,04/06/2014,"1,560.00"
5161939,TAMESIDE SPORTS TRUST,SCYP ,Childrens Services,Cash Grants,,04/06/2014,617.08
5161946,TORDAN HEALTHCARE LTD,Children's Services,Childrens Services,Homecare Fees,,04/06/2014,710.5
5161950,THE FURNISHING SERVICE LTD,Neighbourhoods & Communities,"Community, Adult & Adults Early Intervention",Fixtures & Fittings Purchase,,25/06/2014,800.98
5161959,THE FURNISHING SERVICE LTD,Neighbourhoods & Communities,"Community, Adult & Adults Early Intervention",Fixtures & Fittings Purchase,,11/06/2014,"1,179.41"
5161964,THE FURNISHING SERVICE LTD,Neighbourhoods & Communities,"Community, Adult & Adults Early Intervention",Fixtures & Fittings Purchase,,19/06/2014,924.74
5161977,TORDAN HEALTHCARE LTD,Children's Services,Childrens Services,Homecare Fees,,04/06/2014,768.5
5161978,THE FURNISHING SERVICE LTD,Neighbourhoods & Communities,"Community, Adult & Adults Early Intervention",Fixtures & Fittings Purchase,,18/06/2014,"1,130.36"
5161979,THE FURNISHING SERVICE LTD,Neighbourhoods & Communities,"Community, Adult & Adults Early Intervention",Fixtures & Fittings Purchase,,12/06/2014,568.07
5161981,TORDAN HEALTHCARE LTD,Children's Services,Childrens Services,Homecare Fees,,04/06/2014,"1,257.88"
5161983, ,Multiple Heads of Service,Multiple Strategic Directorates,Claims Settled,Redacted Supplier,05/06/2014,500
5161992,THE FURNISHING SERVICE LTD,Neighbourhoods & Communities,"Community, Adult & Adults Early Intervention",Fixtures & Fittings Purchase,,12/06/2014,739.59
5161995,PRIORY TENNIS CLUB,Borough Solicitor,Director of Governance,Non-Authority Accommodation Rental,,12/06/2014,500
5161996,THE FURNISHING SERVICE LTD,Neighbourhoods & Communities,"Community, Adult & Adults Early Intervention",Fixtures & Fittings Purchase,,18/06/2014,508.1
5162003,TORDAN HEALTHCARE LTD,Children's Services,Childrens Services,Homecare Fees,,04/06/2014,652.5
5162010,,Children's Services,Childrens Services,Foster Carer Agency Fees,Redacted Supplier,04/06/2014,799
5162014,THE FURNISHING SERVICE LTD,Neighbourhoods & Communities,"Community, Adult & Adults Early Intervention",Fixtures & Fittings Purchase,,19/06/2014,731.16
5162027, ,Adult Services,"Community, Adult & Adults Early Intervention",Residential Home Short Stay Fees,Redacted Supplier,05/06/2014,"1,093.56"
5162028, ,Children's Services,Childrens Services,Childrens Homes Outside Local Authority Fees,Redacted Supplier,05/06/2014,"12,400.00"
5162029,ELECTRICITY NORTH WEST LTD,Technical,Places,Reactive Works Engineers Recharge,,05/06/2014,609.99
5162032,THE FURNISHING SERVICE LTD,Neighbourhoods & Communities,"Community, Adult & Adults Early Intervention",Fixtures & Fittings Purchase,,19/06/2014,736.89
5162033,ELECTRICITY NORTH WEST LTD,Technical,Places,Reactive Works Engineers Recharge,,05/06/2014,609.99
5162035,THE FURNISHING SERVICE LTD,Neighbourhoods & Communities,"Community, Adult & Adults Early Intervention",Fixtures & Fittings Purchase,,19/06/2014,"1,006.52"
5162036,THE GUINNESS PARTNERSHIP LTD,Adult Services,"Community, Adult & Adults Early Intervention",Non-Authority Accommodation Rental,,27/06/2014,"1,172.45"
5162038,METRIC GROUP LTD,Technical,Places,General Materials,,19/06/2014,529.39
5162042,ELECTRICITY NORTH WEST LTD,Technical,Places,Reactive Works Engineers Recharge,,05/06/2014,609.99
5162045,ELECTRICITY NORTH WEST LTD,Technical,Places,Street Lighting,,27/06/2014,609.99
5162048,THE FURNISHING SERVICE LTD,Neighbourhoods & Communities,"Community, Adult & Adults Early Intervention",Fixtures & Fittings Purchase,,27/06/2014,"1,049.14"
5162049,CREATIVE SUPPORT LTD,Adult Services,"Community, Adult & Adults Early Intervention",Homecare Fees,,12/06/2014,"15,291.50"
5162051,TRINITY COLLEGE LONDON,Neighbourhoods & Communities,"Community, Adult & Adults Early Intervention",Professional Entertainment Services,,19/06/2014,855
5162057,THE FURNISHING SERVICE LTD,Neighbourhoods & Communities,"Community, Adult & Adults Early Intervention",Fixtures & Fittings Purchase,,27/06/2014,"1,296.11"
5162064,TRANSITIONAL PLUS CARE CIC LTD,SCYP ,Childrens Services,Living With Formal Support,,05/06/2014,"3,642.85"
5162066,ELECTRICITY NORTH WEST LTD,Technical,Places,Reactive Works Engineers Recharge,,05/06/2014,609.99
5162067,HUGH MASON PROPERTIES LIMITED,Adult Services,"Community, Adult & Adults Early Intervention",Non-Authority Accommodation Rental,,09/06/2014,"2,153.35"
5162069,,Children's Services,Childrens Services,Foster Carer Agency Fees,Redacted Supplier,12/06/2014,"4,248.89"
5162070,HUGH MASON PROPERTIES LIMITED,Adult Services,"Community, Adult & Adults Early Intervention",Non-Authority Accommodation Rental,,09/06/2014,"2,153.35"
5162072,HUGH MASON PROPERTIES LIMITED,Adult Services,"Community, Adult & Adults Early Intervention",Non-Authority Accommodation Rental,,09/06/2014,"2,411.13"
5162075,NORTHERN PROPERTIES LTD,Adult Services,"Community, Adult & Adults Early Intervention",Non-Authority Accommodation Rental,,09/06/2014,"1,802.24"
5162076,TRAFFORD MBC,Other Services,Director of Finance,Other Accomodation Related Costs,,09/06/2014,834
5162079,WESLEY PROPERTIES (NORTHERN) LTD,Adult Services,"Community, Adult & Adults Early Intervention",Non-Authority Accommodation Rental,,09/06/2014,"1,336.48"
5162080,STAMFORD PROPERTIES,Adult Services,"Community, Adult & Adults Early Intervention",Non-Authority Accommodation Rental,,09/06/2014,"2,490.47"
5162081, ,Children's Services,Childrens Services,Childrens Homes Outside Local Authority Fees,Redacted Supplier,05/06/2014,"12,000.00"
5162082,STAMFORD PROPERTIES,Adult Services,"Community, Adult & Adults Early Intervention",Non-Authority Accommodation Rental,,09/06/2014,992.62
5162083,HAMILTON PROPERTIES,Adult Services,"Community, Adult & Adults Early Intervention",Non-Authority Accommodation Rental,,09/06/2014,"1,536.79"
5162084,CROFT INVESTMENTS LTD,Adult Services,"Community, Adult & Adults Early Intervention",Non-Authority Accommodation Rental,,09/06/2014,"1,975.23"
5162086,CARE UK HOMECARE,Adult Services,"Community, Adult & Adults Early Intervention",Homecare Fees,,05/06/2014,"30,695.06"
5162087,ALTERNATIVE FUTURES GROUP,Adult Services,"Community, Adult & Adults Early Intervention",Homecare Fees,,12/06/2014,"16,905.60"
5162090,,Children's Services,Childrens Services,Foster Carer Agency Fees,Redacted Supplier,12/06/2014,800
5162100,PAYPOINT COLLECTIONS LTD,Neighbourhoods & Communities,"Community, Adult & Adults Early Intervention",Emergency Grant Payments,,05/06/2014,941
5162104,TAMESIDE MAGISTRATES COURT,Exchequer,Director of Finance,Professional Services,,05/06/2014,"5,598.00"
5162105,MUSIC EXCHANGE (MANCHESTER) LTD,Neighbourhoods & Communities,"Community, Adult & Adults Early Intervention",Professional Entertainment Services,,09/06/2014,580.65
5162117,CBRE SPUK II (NO17) LTD,Tameside Investment Partnership,Places,Non-Authority Accommodation Rental,,11/06/2014,"4,750.00"
5162128,RANDSTAD EDUCATION LIMITED,Education Services,Childrens Services,APT&C Basic Pay,,11/06/2014,796
5162138,AZZURRI COMMUNICATIONS LTD,Children's Services,Childrens Services,Computer Hardware Maintenance Costs,,09/06/2014,"1,813.17"
5162139,PENNINE CARE NHS TRUST,Adult Services,"Community, Adult & Adults Early Intervention",Professional Services,,05/06/2014,"7,296.00"
5162141,PENNINE CARE NHS TRUST,Adult Services,"Community, Adult & Adults Early Intervention",Professional Services,,05/06/2014,"7,296.00"
5162160,ATKINS LTD,Engineers Client,"Economic Growth, Investment and Sustainability",Consultancies,,25/06/2014,"2,733.50"
5162166,THE BLACKBURN PRODUCTS CO LTD,Technical,Places,Refuse Domestic Bin Purchases,,05/06/2014,520
5162178,TRINITY COLLEGE LONDON,Neighbourhoods & Communities,"Community, Adult & Adults Early Intervention",Professional Entertainment Services,,23/06/2014,"1,026.00"
5162179,FOUNDATION (CENTRAL SERVICES),Neighbourhoods & Communities,"Community, Adult & Adults Early Intervention",Supporting People Gross Contract,,09/06/2014,"35,000.00"
5162181,STOCKPORT NHS FOUNDATION TRUST,Public Health,Public Health,Professional Services,,11/06/2014,"289,595.00"
5162184,STOCKPORT NHS FOUNDATION TRUST,Public Health,Public Health,Professional Services,,11/06/2014,"289,595.00"
5162194,PG FABRICATIONS,Operations,Places,General Materials,,12/06/2014,"1,395.00"
5162195,GREENSCAPE,Operations,Places,Agency Staff,,12/06/2014,"1,518.78"
5162197,HMCTS,Children's Services,Childrens Services,Court Fees,,09/06/2014,"9,270.00"
5162199,NEW CHARTER HOUSING TRUST GROUP,Neighbourhoods & Communities,"Community, Adult & Adults Early Intervention",Contributions,,25/06/2014,"4,166.66"
5162200,THE FAMILY UNIT LTD,SCYP ,Childrens Services,Living With Formal Support,,12/06/2014,"5,400.00"
5162202,,Children's Services,Childrens Services,Foster Carer Agency Fees,Redacted Supplier,12/06/2014,698.26
5162204,ELECTRICITY NORTH WEST LTD,Technical,Places,Reactive Works Engineers Recharge,,05/06/2014,609.99
5162207,,Children's Services,Childrens Services,Foster Carer Agency Fees,Redacted Supplier,27/06/2014,"3,136.56"
5162208,LOOP PUBLISHING LIMITED,Technical,Places,Statutory Advertising,,23/06/2014,500
5162210,ELECTRICITY NORTH WEST LTD,Technical,Places,Reactive Works Engineers Recharge,,09/06/2014,609.99
5162229,MANCHESTER MENTAL HEALTH & SOCIAL CARE TRUST,Other Services,Director of Finance,Professional Services,,12/06/2014,"3,602.00"
5162233,FOUNDATION (CENTRAL SERVICES),Neighbourhoods & Communities,"Community, Adult & Adults Early Intervention",Supporting People Gross Contract,,27/06/2014,"35,000.00"
5162234,ALTERNATIVE FUTURES GROUP,Adult Services,"Community, Adult & Adults Early Intervention",Homecare Fees,,12/06/2014,"116,656.04"
5162242,CONCEPT CARPETS,Adult Services,"Community, Adult & Adults Early Intervention",Fixtures & Fittings Purchase,,11/06/2014,"1,406.00"
5162243,ALTERNATIVE FUTURES GROUP,Adult Services,"Community, Adult & Adults Early Intervention",Homecare Fees,,12/06/2014,"116,656.04"
5162249,DOMAIN CARE NORTH WEST LTD,Adult Services,"Community, Adult & Adults Early Intervention",Homecare Fees,,18/06/2014,639.6
5162254,CONCEPT CARPETS,Adult Services,"Community, Adult & Adults Early Intervention",Fixtures & Fittings Purchase,,11/06/2014,"1,455.00"
5162256,DOMAIN CARE NORTH WEST LTD,Adult Services,"Community, Adult & Adults Early Intervention",Homecare Fees,,18/06/2014,"2,100.00"
5162259,DOMAIN CARE NORTH WEST LTD,Adult Services,"Community, Adult & Adults Early Intervention",Homecare Fees,,18/06/2014,"1,152.00"
5162260,FACILITY SOLUTIONS NORTHWEST,Other Services,Director of Finance,Security Services,,09/06/2014,"4,398.50"
5162268,NPOWER LIMITED,Tameside Investment Partnership,Places,Electricity,,11/06/2014,"1,517.00"
5162284,NPOWER LIMITED,Tameside Investment Partnership,Places,Electricity,,11/06/2014,663.16
5162320,NPOWER LIMITED,Tameside Investment Partnership,Places,Electricity,,11/06/2014,571.34
5162324,HAUGHTON GREEN METHODIST CHURCH,Borough Solicitor,Director of Governance,Non-Authority Accommodation Rental,,12/06/2014,700
5162342,READING ROOM MANCHESTER LTD,Neighbourhoods & Communities,"Community, Adult & Adults Early Intervention",Contingency Provisions,,09/06/2014,982.5
5162345,DOMAIN CARE NORTH WEST LTD,Adult Services,"Community, Adult & Adults Early Intervention",Homecare Fees,,18/06/2014,"4,480.00"
5162382,NPOWER LIMITED,Tameside Investment Partnership,Places,Electricity,,11/06/2014,534.16
5162387,NPOWER LIMITED,Tameside Investment Partnership,Places,Electricity,,11/06/2014,593.85
5162388,NPOWER LIMITED,Tameside Investment Partnership,Places,Electricity,,11/06/2014,"1,091.30"
5162393,NPOWER LIMITED,Tameside Investment Partnership,Places,Electricity,,11/06/2014,"1,177.93"
5162404, ,Adult Services,"Community, Adult & Adults Early Intervention",Day Care Fees,Redacted Supplier,09/06/2014,983.74
5162407, ,Adult Services,"Community, Adult & Adults Early Intervention",Day Care Fees,Redacted Supplier,09/06/2014,545.94
5162414,NPOWER LIMITED,Tameside Investment Partnership,Places,Electricity,,11/06/2014,851.52
5162421,CITY LIFT SERVICES (NW) LTD,Adult Services,"Community, Adult & Adults Early Intervention",General Equipment Repair & Maintenance,,09/06/2014,"5,871.00"
5162434,NPOWER LIMITED,Tameside Investment Partnership,Places,Electricity,,11/06/2014,"1,548.45"
5162445,NPOWER LIMITED,Tameside Investment Partnership,Places,Electricity,,11/06/2014,714.74
5162446,NPOWER LIMITED,Tameside Investment Partnership,Places,Electricity,,11/06/2014,"1,995.63"
5162455,UNITED UTILITIES WATER PLC,Tameside Investment Partnership,Places,Metered Water Costs,,11/06/2014,"1,120.49"
5162460,NPOWER LIMITED,Tameside Investment Partnership,Places,Electricity,,11/06/2014,570.33
5162467,NPOWER LIMITED,Tameside Investment Partnership,Places,Electricity,,11/06/2014,"1,358.28"
5162469,NPOWER LIMITED,Tameside Investment Partnership,Places,Electricity,,11/06/2014,"2,389.31"
5162488,STOCKPORT NHS FOUNDATION TRUST,Adult Services,"Community, Adult & Adults Early Intervention",Agency Staff,,11/06/2014,"2,977.08"
5162489,STOCKPORT NHS FOUNDATION TRUST,Adult Services,"Community, Adult & Adults Early Intervention",Agency Staff,,11/06/2014,"2,977.08"
5162497,NPOWER LIMITED,Tameside Investment Partnership,Places,Electricity,,11/06/2014,"1,780.98"
5162499,NPOWER LIMITED,Education Services,Childrens Services,Electricity,,11/06/2014,"1,346.07"
5162500,NPOWER LIMITED,Tameside Investment Partnership,Places,Electricity,,11/06/2014,"1,032.94"
5162501,NPOWER LIMITED,Tameside Investment Partnership,Places,Electricity,,11/06/2014,"1,124.71"
5162502,NPOWER LIMITED,Tameside Investment Partnership,Places,Electricity,,11/06/2014,"6,718.52"
5162504,NPOWER LIMITED,Tameside Investment Partnership,Places,Electricity,,11/06/2014,"2,199.04"
5162506,NPOWER LIMITED,Tameside Investment Partnership,Places,Electricity,,11/06/2014,"1,732.41"
5162509,INSPIREDSPACES TAMESIDE LTD,Asset Management and Investment Partnership Management,"Economic Growth, Investment and Sustainability",IT - External  Recharge,,27/06/2014,"13,058.64"
5162509,INSPIREDSPACES TAMESIDE LTD,Sustainable Growth,Places,Professional Services,,27/06/2014,"2,700.00"
5162510,NPOWER LIMITED,Tameside Investment Partnership,Places,Electricity,,11/06/2014,"1,713.20"
5162524,NPOWER LIMITED,Tameside Investment Partnership,Places,Electricity,,11/06/2014,964.13
5162537,,Children's Services,Childrens Services,Foster Carer Agency Fees,Redacted Supplier,12/06/2014,"3,638.70"
5162544,,Children's Services,Childrens Services,Foster Carer Agency Fees,Redacted Supplier,09/06/2014,"3,759.99"
5162549,,Children's Services,Childrens Services,Foster Carer Agency Fees,Redacted Supplier,09/06/2014,"3,759.99"
5162550,DR ANEELA PILKINGTON,Children's Services,Childrens Services,Professional Child Services,Business Payment,09/06/2014,"2,512.00"
5162553,JOY LEGAL LTD,Borough Solicitor,Director of Governance,Agency Staff,,09/06/2014,"3,630.00"
5162559,PROFILE SECURITY SERVICES LIMITED,Technical,Places,Security Services,,09/06/2014,"2,056.80"
5162560,PRD PROPERTY SERVICES LTD,Borough Solicitor,Director of Governance,Legal Fees,,09/06/2014,"4,080.00"
5162569, ,Children's Services,Childrens Services,Childrens Homes Outside Local Authority Fees,Redacted Supplier,09/06/2014,"11,200.00"
5162570,POSITIVE STEPS OLDHAM,Strategy & Early Intervention,Childrens Services,Professional Services,,18/06/2014,"38,219.18"
5162575, ,Children's Services,Childrens Services,Living Without Formal Support,Redacted Supplier,09/06/2014,850
5162588,CONCEPT,Neighbourhoods & Communities,"Community, Adult & Adults Early Intervention",General Materials For Resale,,19/06/2014,"1,383.00"
5162593,SHEFFIELD INTERNATIONAL VENUES LTD,NWEGG,Places,Room Hire,,11/06/2014,908
5162596,MRL HEALTHCARE LIMITED,Adult Services,"Community, Adult & Adults Early Intervention",Homecare Fees,,09/06/2014,"13,349.92"
5162597, ,Children's Services,Childrens Services,Childrens Homes Outside Local Authority Fees,Redacted Supplier,19/06/2014,"20,325.29"
5162602,,Children's Services,Childrens Services,Foster Carer Agency Fees,Redacted Supplier,09/06/2014,"3,155.49"
5162603,AIR SOCIAL CARE,Children's Services,Childrens Services,Agency Staff,,12/06/2014,"1,020.00"
5162606,,Children's Services,Childrens Services,Foster Carer Agency Fees,Redacted Supplier,09/06/2014,"3,272.67"
5162608,,Children's Services,Childrens Services,Foster Carer Agency Fees,Redacted Supplier,09/06/2014,"3,321.34"
5162609, ,Children's Services,Childrens Services,Childrens Homes Outside Local Authority Fees,Redacted Supplier,09/06/2014,"3,420.54"
5162610,,Children's Services,Childrens Services,Foster Carer Agency Fees,Redacted Supplier,09/06/2014,"3,011.34"
5162611,SYMOLOGY LIMITED,Technical,Places,Subscriptions,,19/06/2014,560
5162613,AIR SOCIAL CARE,Children's Services,Childrens Services,Agency Staff,,12/06/2014,"1,296.00"
5162622, ,Children's Services,Childrens Services,Childrens Homes Outside Local Authority Fees,Redacted Supplier,12/06/2014,"12,400.00"
5162624,AON LIMITED,Other Services,Director of Finance,Building & Contents Insurance,,09/06/2014,"8,500.00"
5162636,BT GROUP ENGINEERING SERVICES,Audit & Risk Management,Director of Finance,Professional Services,,16/06/2014,594.4
5162638,THERAPLAY LTD,Children's Services,Childrens Services,Other Accomodation Related Costs,,16/06/2014,503.33
5162640,KALAMAZOO SECURE SOLUTIONS LTD,Resource Management,Director of Finance,Postages,,18/06/2014,21
5162640,KALAMAZOO SECURE SOLUTIONS LTD,Resource Management,Director of Finance,Printing And Stationery,,18/06/2014,"3,960.00"
5162641,GENERAL UTILITIES NORTHWEST LTD,Technical,Places,Purchase Cleaning/Domestic Equipment,,23/06/2014,620
5162643,COMMUNITY AND VOLUNTARY ACTION TAMESIDE,Neighbourhoods & Communities,"Community, Adult & Adults Early Intervention",Grants to Organisations,,09/06/2014,"28,000.00"
5162649,NEW BRIDGE HORIZONS,Adult Services,"Community, Adult & Adults Early Intervention",Homecare Fees,,18/06/2014,508
5162650,ELECTRICITY NORTH WEST LTD,Technical,Places,Reactive Works Engineers Recharge,,16/06/2014,609.99
5162652,CARE IN MIND LTD,Adult Services,"Community, Adult & Adults Early Intervention",Residential Home Short Stay Fees,,12/06/2014,"10,698.00"
5162654,ELECTRICITY NORTH WEST LTD,Technical,Places,Reactive Works Engineers Recharge,,16/06/2014,609.99
5162657,,Children's Services,Childrens Services,Foster Carer Agency Fees,Redacted Supplier,19/06/2014,"7,971.43"
5162669,,Children's Services,Childrens Services,Foster Carer Agency Fees,Redacted Supplier,16/06/2014,"3,273.02"
5162670,THE PARKING SHOP,Technical,Places,General Materials,,19/06/2014,"1,725.10"
5162671,COMMUNITY AND VOLUNTARY ACTION TAMESIDE,Neighbourhoods & Communities,"Community, Adult & Adults Early Intervention",Professional Services,,09/06/2014,"34,000.00"
5162674,UNITED UTILITIES WATER PLC,Tameside Investment Partnership,Places,Metered Water Costs,,11/06/2014,"4,144.79"
5162679,NEW BRIDGE HORIZONS,Adult Services,"Community, Adult & Adults Early Intervention",Homecare Fees,,18/06/2014,"2,105.00"
5162683,,Children's Services,Childrens Services,Foster Carer Agency Fees,Redacted Supplier,09/06/2014,799
5162684,LIMB TO LIMB TREE SERVICES LIMITED,Operations,Places,General Materials,,25/06/2014,700
5162690,ELECTRICITY NORTH WEST LTD,Technical,Places,Reactive Works Engineers Recharge,,16/06/2014,609.99
5162691,ELECTRICITY NORTH WEST LTD,Technical,Places,Reactive Works Engineers Recharge,,16/06/2014,609.99
5162692,ELECTRICITY NORTH WEST LTD,Technical,Places,Reactive Works Engineers Recharge,,09/06/2014,609.99
5162693,ELECTRICITY NORTH WEST LTD,Technical,Places,Reactive Works Engineers Recharge,,16/06/2014,609.99
5162697,CLOVERLEAF ADVOCACY 2000 LTD,Adults Early Intervention,"Community, Adult & Adults Early Intervention",Professional Services,,16/06/2014,"12,408.30"
5162703,CORONA ENERGY RETAIL 4 LIMITED,Education Services,Childrens Services,Gas,,11/06/2014,"2,524.42"
5162710,TRAFFORD MBC,Children's Services,Childrens Services,"Marketing, Publicity and Recruitment",,11/06/2014,"40,500.00"
5162715,BROWNS CTP LIMITED,"Media, Marketing & Communications",Director of Governance,Printing And Stationery,,19/06/2014,"1,070.00"
5162718,,Children's Services,Childrens Services,Foster Carer Agency Fees,Redacted Supplier,09/06/2014,"3,814.50"
5162719,LES HALMAN NURSERIES LIMITED,Operations,Places,General Materials,,23/06/2014,"3,161.64"
5162724,COOLSPIRIT LTD,ICT Services,Places,It Equipment,,27/06/2014,"3,318.95"
5162728,REMPLOY LIMITED,Adults Early Intervention,"Community, Adult & Adults Early Intervention",Agency Staff,,09/06/2014,"4,966.30"
5162732,THE CARE TEAM LTD,Neighbourhoods & Communities,"Community, Adult & Adults Early Intervention",Professional Medical Services,,27/06/2014,"1,200.00"
5162739,SLATER & GORDON LAWYERS,Multiple Heads of Service,Multiple Strategic Directorates,Claims Settled,,11/06/2014,"6,000.00"
5162741,FENTONS TAXIS,Technical,Places,Hired Transport,,11/06/2014,"1,328.00"
5162745,J & R TAXIS LTD,Technical,Places,Hired Transport,,09/06/2014,"2,128.00"
5162748,MARK HARLOW,Technical,Places,Hired Transport,Business Payment,09/06/2014,600
5162749,MARK HARLOW,Technical,Places,Hired Transport,Business Payment,09/06/2014,"1,400.00"
5162750,MOSSLEY PRIVATE HIRE,Technical,Places,Hired Transport,,09/06/2014,"1,180.00"
5162751,MOSSLEY PRIVATE HIRE,Technical,Places,Hired Transport,,09/06/2014,"1,398.00"
5162752,MOSSLEY PRIVATE HIRE,Technical,Places,Hired Transport,,09/06/2014,765
5162757,STAMFORD CARS UK LTD,Technical,Places,Hired Transport,,09/06/2014,720
5162764,STAMFORD CARS UK LTD,Technical,Places,Hired Transport,,09/06/2014,"1,045.00"
5162775, ,Adult Services,"Community, Adult & Adults Early Intervention",Contribution to Maintenance Fee Income,Redacted Supplier,12/06/2014,"1,671.34"
5162777, ,Adult Services,"Community, Adult & Adults Early Intervention",Contribution to Maintenance Fee Income,Redacted Supplier,12/06/2014,"2,542.10"
5162778,PARKLANE,Technical,Places,Hired Transport,,09/06/2014,"1,920.00"
5162781,P MEADOWCROFT,Technical,Places,Hired Transport,Business Payment,09/06/2014,"1,280.00"
5162784,B MORRELL,Technical,Places,Hired Transport,Business Payment,09/06/2014,900
5162785,MR JOHN DELANEY,Technical,Places,Hired Transport,Business Payment,09/06/2014,"1,700.00"
5162786,PARKLANE,Technical,Places,Hired Transport,,09/06/2014,"1,584.00"
5162788,MICHAEL ADLARD,Education Services,Childrens Services,Transport Of Pupils,Business Payment,09/06/2014,880
5162789,GLM ACCESSIBLE TRANSPORT,Technical,Places,Hired Transport, ,09/06/2014,526.5
5162790,RADIO CABS (ASHTON)LTD,Education Services,Childrens Services,Transport Of Pupils,,09/06/2014,"1,265.00"
5162791,LIME TRAVEL,Strategy & Early Intervention,Childrens Services,Hired Transport,,09/06/2014,"2,051.25"
5162792,RADIO CABS (ASHTON)LTD,Education Services,Childrens Services,Transport Of Pupils,,09/06/2014,"1,106.00"
5162793,RADIO CABS (ASHTON)LTD,Education Services,Childrens Services,Transport Of Pupils,,09/06/2014,880
5162794,RADIO CABS (ASHTON)LTD,Education Services,Childrens Services,Transport Of Ola Pupils,,09/06/2014,"1,166.00"
5162799,RADIO CABS (ASHTON)LTD,Education Services,Childrens Services,Transport Of Pupils,,09/06/2014,567.6
5162801,MICHAEL ADLARD,Education Services,Childrens Services,Transport Of Pupils,Business Payment,09/06/2014,880
5162802,RADIO CABS (ASHTON)LTD,Education Services,Childrens Services,Transport Of Pupils,,09/06/2014,"1,034.00"
5162803,HITESH PAREKH,Neighbourhoods & Communities,"Community, Adult & Adults Early Intervention",Other Accomodation Related Costs,Business Payment,11/06/2014,500
5162805,RADIO CABS (ASHTON)LTD,Education Services,Childrens Services,Transport Of Pupils,,09/06/2014,940
5162808,RADIO CABS (ASHTON)LTD,Education Services,Childrens Services,Transport Of Pupils,,09/06/2014,"1,034.00"
5162809,RADIO CABS (ASHTON)LTD,Education Services,Childrens Services,Transport Of Post 16 Pupils,,09/06/2014,840
5162812,,Children's Services,Childrens Services,Foster Carer Agency Fees,Redacted Supplier,11/06/2014,799
5162813,,Children's Services,Childrens Services,Foster Carer Agency Fees,Redacted Supplier,27/06/2014,800
5162815,TRANSITIONAL PLUS CARE CIC LTD,SCYP ,Childrens Services,Living With Formal Support,,11/06/2014,"3,642.85"
5162818,B A HODCROFT,Operations,Places,General Materials,Business Payment,18/06/2014,850
5162819,CREATIVE SUPPORT LTD,Adult Services,"Community, Adult & Adults Early Intervention",Homecare Fees,,12/06/2014,"15,291.50"
5162821,CARE UK HOMECARE,Adult Services,"Community, Adult & Adults Early Intervention",Homecare Fees,,12/06/2014,"31,988.85"
5162822,ABLE CARE AND SUPPORT SERVICES LTD,Adult Services,"Community, Adult & Adults Early Intervention",Homecare Fees,,09/06/2014,799.4
5162829,ASHTON UNDER LYNE BRASS BAND,Neighbourhoods & Communities,"Community, Adult & Adults Early Intervention",Professional Entertainment Services,,09/06/2014,500
5162834,INSPIREDSPACES TAMESIDE LTD,Asset Management and Investment Partnership Management,"Economic Growth, Investment and Sustainability",Refurbishment Construction Costs,,11/06/2014,"546,856.06"
5162834,INSPIREDSPACES TAMESIDE LTD,Asset Mgmt & Investment Partnership Mgmt,Places,Refreshments,,11/06/2014,"30,286.15"
5162841,ALTERNATIVE FUTURES GROUP,Adult Services,"Community, Adult & Adults Early Intervention",Homecare Fees,,12/06/2014,"3,622.63"
5162844,PENNINE CARE NHS TRUST,Other Services,Director of Finance,Professional Services,,11/06/2014,"12,590.54"
5162847,CREATIVE SUPPORT LTD,Adult Services,"Community, Adult & Adults Early Intervention",Homecare Fees,,11/06/2014,"15,291.50"
5162849,ABLE CARE AND SUPPORT SERVICES LTD,Adult Services,"Community, Adult & Adults Early Intervention",Homecare Fees,,09/06/2014,799.4
5162850,ABLE CARE AND SUPPORT SERVICES LTD,Adult Services,"Community, Adult & Adults Early Intervention",Homecare Fees,,09/06/2014,799.4
5162851,ELECTRICITY NORTH WEST LTD,Technical,Places,Sub-contractor Services,,27/06/2014,609.99
5162852,CITY LIFT SERVICES (NW) LTD,Adult Services,"Community, Adult & Adults Early Intervention",Adaptations To Buildings,,11/06/2014,"10,333.00"
5162854,ALTERNATIVE FUTURES GROUP,Adult Services,"Community, Adult & Adults Early Intervention",Homecare Fees,,12/06/2014,"16,905.60"
5162855,ELECTRICITY NORTH WEST LTD,Technical,Places,Sub-contractor Services,,27/06/2014,609.99
5162856,,Children's Services,Childrens Services,Foster Carer Agency Fees,Redacted Supplier,11/06/2014,"3,155.49"
5162862,THE FAMILY UNIT LTD,SCYP ,Childrens Services,Living With Formal Support,,12/06/2014,"3,400.00"
5162864,VODAFONE,Resource Management,Director of Finance,Telephone Landline Costs,,11/06/2014,774.38
5162873,VODAFONE,Multiple Heads of Service,Multiple Strategic Directorates,Debits,,11/06/2014,"6,631.69"
5162879,THE FAMILY UNIT LTD,SCYP ,Childrens Services,Living With Formal Support,,12/06/2014,"3,400.00"
5162881,THE FAMILY UNIT LTD,SCYP ,Childrens Services,Living With Formal Support,,12/06/2014,"3,000.00"
5162882,UNITED UTILITIES WATER PLC,Tameside Investment Partnership,Places,Refreshments,,11/06/2014,893.08
5162886,ELECTRICITY NORTH WEST LTD,Technical,Places,Sub-contractor Services,,27/06/2014,609.99
5162888,HANDICARE LIMITED,Housing,"Economic Growth, Investment and Sustainability",Improvement Grants - Final Mandatory,,19/06/2014,"1,590.00"
5162892,MR JAMES TURLEY T/A R TURLEY PLUMBERS,Housing,"Economic Growth, Investment and Sustainability",Improvement Grants - Final Mandatory,Business Payment,11/06/2014,"3,410.00"
5162893,HOIST & SHOWER CHAIR CO,Housing,"Economic Growth, Investment and Sustainability",Improvement Grants - Final Mandatory,,18/06/2014,"2,965.00"
5162896,TERRY GROUP LIMITED,Housing,"Economic Growth, Investment and Sustainability",Improvement Grants - Final Mandatory,,11/06/2014,"11,127.00"
5162900,ELECTRICITY NORTH WEST LTD,Technical,Places,Reactive Works Engineers Recharge,,12/06/2014,"1,489.99"
5162906,,Children's Services,Childrens Services,Foster Carer Agency Fees,Redacted Supplier,19/06/2014,"3,407.14"
5162911, ,Children's Services,Childrens Services,Childrens Homes Outside Local Authority Fees,Redacted Supplier,27/06/2014,"8,414.00"
5162913,POWERCARE,Technical,Places,Electrical Works,,11/06/2014,"1,063.00"
5162914,,Children's Services,Childrens Services,Foster Carer Agency Fees,Redacted Supplier,19/06/2014,800
5162915,,Children's Services,Childrens Services,Foster Carer Agency Fees,Redacted Supplier,11/06/2014,800
5162916,PAYPOINT COLLECTIONS LTD,Neighbourhoods & Communities,"Community, Adult & Adults Early Intervention",Emergency Grant Payments,,11/06/2014,761
5162917,,Children's Services,Childrens Services,Foster Carer Agency Fees,Redacted Supplier,11/06/2014,799
5162920, ,Adult Services,"Community, Adult & Adults Early Intervention",Contribution to Maintenance Fee Income,Redacted Supplier,12/06/2014,"1,521.12"
5162921, ,Adult Services,"Community, Adult & Adults Early Intervention",Homecare Fees,Redacted Supplier,12/06/2014,784.11
5162924, ,Adult Services,"Community, Adult & Adults Early Intervention",Homecare Fees,Redacted Supplier,12/06/2014,556.85
5162928, ,Adult Services,"Community, Adult & Adults Early Intervention",Homecare Fees,Redacted Supplier,12/06/2014,"1,039.33"
5162929,NEW CHARTER HOUSING TRUST GROUP,Neighbourhoods & Communities,"Community, Adult & Adults Early Intervention",Housing Aid Function,,25/06/2014,"37,018.78"
5162930, ,Adult Services,"Community, Adult & Adults Early Intervention",Homecare Fees,Redacted Supplier,12/06/2014,669.18
5162933,NEW CHARTER HOUSING TRUST GROUP,Neighbourhoods & Communities,"Community, Adult & Adults Early Intervention",Supporting People Gross Contract,,16/06/2014,"20,022.16"
5162936,MAKING SPACE,Adult Services,"Community, Adult & Adults Early Intervention",Voluntary Organisations Fees,,11/06/2014,"20,735.75"
5162952,STANNAH LIFT SERVICES LTD,Housing,"Economic Growth, Investment and Sustainability",Improvement Grants - Final Mandatory,,27/06/2014,"1,630.00"
5162957,DOMAIN CARE NORTH WEST LTD,Adult Services,"Community, Adult & Adults Early Intervention",Homecare Fees,,18/06/2014,"2,100.00"
5162959,DOMAIN CARE NORTH WEST LTD,Adult Services,"Community, Adult & Adults Early Intervention",Homecare Fees,,18/06/2014,639.6
5162961,DOMAIN CARE NORTH WEST LTD,Adult Services,"Community, Adult & Adults Early Intervention",Homecare Fees,,18/06/2014,"1,440.00"
5162963,DOMAIN CARE NORTH WEST LTD,Adult Services,"Community, Adult & Adults Early Intervention",Homecare Fees,,18/06/2014,831.48
5162964,DOMAIN CARE NORTH WEST LTD,Adult Services,"Community, Adult & Adults Early Intervention",Homecare Fees,,18/06/2014,"4,480.00"
5162966,,Children's Services,Childrens Services,Foster Carer Agency Fees,Redacted Supplier,12/06/2014,"2,978.70"
5162968,FOSTERING SOLUTIONS LTD,Children's Services,Childrens Services,Childrens Homes Outside Local Authority Fees,,27/06/2014,"3,183.39"
5162971,,Children's Services,Childrens Services,Foster Carer Agency Fees,Redacted Supplier,11/06/2014,"3,251.85"
5162973,CONCEPT CARPETS,Adult Services,"Community, Adult & Adults Early Intervention",Fixtures & Fittings Purchase,,18/06/2014,"1,455.00"
5162978, ,Children's Services,Childrens Services,Childrens Homes Outside Local Authority Fees,Redacted Supplier,11/06/2014,"9,455.00"
5162979, ,Children's Services,Childrens Services,Childrens Homes Outside Local Authority Fees,Redacted Supplier,11/06/2014,"9,455.00"
5162992,HOWARD COOK,Education Services,Childrens Services,Professional Services,Business Payment,11/06/2014,680
5163005,CIPFA BUSINESS LIMITED,Audit & Risk Management,Director of Finance,Subscriptions,,11/06/2014,"1,602.25"
5163006,UNITED UTILITIES WATER PLC,Tameside Investment Partnership,Places,Metered Water Costs,,11/06/2014,"1,486.29"
5163006,UNITED UTILITIES WATER PLC,Technical,Places,Metered Water Costs,,11/06/2014,158.56
5163007,SILVERTHORN SECURITY SERVICES & IA LIMITED,NWEGG,Places,Subscriptions,,25/06/2014,"6,000.00"
5163009,CARE UK HOMECARE,Adult Services,"Community, Adult & Adults Early Intervention",Homecare Fees,,18/06/2014,"1,512.00"
5163013,STEP AHEAD RESOURCE SERVICES,SCYP ,Childrens Services,Cash Grants,,11/06/2014,750
5163022,UNITED UTILITIES WATER PLC,Tameside Investment Partnership,Places,Metered Water Costs,,11/06/2014,547.06
5163024,UNITED UTILITIES WATER PLC,Tameside Investment Partnership,Places,Metered Water Costs,,11/06/2014,"1,513.73"
5163025,UNITED UTILITIES WATER PLC,Tameside Investment Partnership,Places,Metered Water Costs,,11/06/2014,446.85
5163025,UNITED UTILITIES WATER PLC,Technical,Places,Metered Water Costs,,11/06/2014,318.21
5163032,UNITED UTILITIES WATER PLC,Tameside Investment Partnership,Places,Metered Water Costs,,11/06/2014,"2,575.97"
5163033,UNITED UTILITIES WATER PLC,Tameside Investment Partnership,Places,Metered Water Costs,,11/06/2014,973.44
5163035,NEW CHARTER HOUSING TRUST GROUP,Children's Services,Childrens Services,Planning Fees,,11/06/2014,"3,458.83"
5163035,NEW CHARTER HOUSING TRUST GROUP,Neighbourhoods & Communities,"Community, Adult & Adults Early Intervention",Supporting People Gross Contract,,11/06/2014,"26,433.08"
5163035,NEW CHARTER HOUSING TRUST GROUP,Public Health,Public Health,Supporting People Gross Contract,,11/06/2014,"13,176.25"
5163040,ROCHDALE MBC,Other Services,Director of Finance,Professional Services,,11/06/2014,"4,516.80"
5163041,JULIE STIRPE ASSOCIATES LTD,Children's Services,Childrens Services,Professional Consultancy Services,,11/06/2014,883.8
5163044,JULIE STIRPE ASSOCIATES LTD,Children's Services,Childrens Services,Professional Consultancy Services,,11/06/2014,570
5163045, ,Strategy & Early Intervention,Childrens Services,Child Care Fees,Redacted Supplier,11/06/2014,600
5163046,KIDDIVOUCHERS LTD,Multiple Heads of Service,Multiple Strategic Directorates,Debits,,11/06/2014,561.93
5163047,KIDDIVOUCHERS LTD,Multiple Heads of Service,Multiple Strategic Directorates,Debits,,11/06/2014,627.98
5163056,PG FABRICATIONS,Operations,Places,General Materials,,12/06/2014,775
5163057,PICCOLO COMMUNICATIONS LTD,Technical,Places,Statutory Advertising,,11/06/2014,550
5163059,PG FABRICATIONS,Multiple Heads of Service,Multiple Strategic Directorates,Fencing Works,,19/06/2014,"2,520.85"
5163064,DR KATE HELLIN,Children's Services,Childrens Services,Professional Services,Business Payment,11/06/2014,661.88
5163067,DR RUSSELL AUSTIN,Children's Services,Childrens Services,Professional Services,Business Payment,12/06/2014,"1,174.50"
5163069,MS EMMA GREENHALGH,Children's Services,Childrens Services,Professional Services,Business Payment,11/06/2014,"2,825.00"
5163070,TRINITY MIRROR NORTH PUBLISHING LTD,"Media, Marketing & Communications",Director of Governance,Statutory Advertising,,11/06/2014,"2,105.00"
5163074,MR SHIFTER REMOVALS,Adult Services,"Community, Adult & Adults Early Intervention",Furniture Removal Fees,,12/06/2014,750
5163087,,Children's Services,Childrens Services,Foster Carer Agency Fees,Redacted Supplier,11/06/2014,"3,814.50"
5163092,STORACALL  VOICE SYSTEMS LTD,Neighbourhoods & Communities,"Community, Adult & Adults Early Intervention",Repairs & Maintenance Of General Office Equipment,,27/06/2014,682.5
5163095,MIDLAND SOFTWARE LTD,People & Performance,Director of Governance,Licences,,18/06/2014,"23,311.21"
5163097, ,Children's Services,Childrens Services,Childrens Homes Outside Local Authority Fees,Redacted Supplier,12/06/2014,"14,250.00"
5163098,ALTERNATIVE FUTURES GROUP,Adult Services,"Community, Adult & Adults Early Intervention",Homecare Fees,,18/06/2014,"3,525.38"
5163099,STEP AHEAD RESOURCE SERVICES,SCYP ,Childrens Services,Living Without Formal Support,,11/06/2014,750
5163100,STEP AHEAD RESOURCE SERVICES,SCYP ,Childrens Services,Living Without Formal Support,,11/06/2014,750
5163101,,Children's Services,Childrens Services,Foster Carer Agency Fees,Redacted Supplier,11/06/2014,"2,825.00"
5163103,STEP AHEAD RESOURCE SERVICES,Children's Services,Childrens Services,Living Without Formal Support,,11/06/2014,850
5163108,ALTERNATIVE FUTURES GROUP,Adult Services,"Community, Adult & Adults Early Intervention",Homecare Fees,,18/06/2014,"3,298.25"
5163115,STEP AHEAD RESOURCE SERVICES,SCYP ,Childrens Services,Living Without Formal Support,,11/06/2014,850
5163119,ALTERNATIVE FUTURES GROUP,Adult Services,"Community, Adult & Adults Early Intervention",Homecare Fees,,18/06/2014,709.75
5163121,ROYAL MENCAP SOCIETY,Adult Services,"Community, Adult & Adults Early Intervention",Voluntary Organisations Fees,,18/06/2014,"9,840.00"
5163123,REMPLOY LIMITED,Adult Services,"Community, Adult & Adults Early Intervention",Agency Staff,,18/06/2014,580.52
5163128, ,Children's Services,Childrens Services,Childrens Homes Outside Local Authority Fees,Redacted Supplier,11/06/2014,"11,680.50"
5163135,CITY LIFT SERVICES (NW) LTD,Adult Services,"Community, Adult & Adults Early Intervention",Adaptations To Buildings,,27/06/2014,664
5163139,CITY LIFT SERVICES (NW) LTD,Adult Services,"Community, Adult & Adults Early Intervention",Adaptations To Buildings,,27/06/2014,"1,428.00"
5163147,MRL HEALTHCARE LIMITED,Adult Services,"Community, Adult & Adults Early Intervention",Homecare Fees,,23/06/2014,"12,769.50"
5163152,ARGOS BUSINESS SOLUTIONS,SCYP ,Childrens Services,Cash Grants,,23/06/2014,975.05
5163154,FRESH START INDEPENDENCE PROJECT LTD,SCYP ,Childrens Services,Living With Formal Support,,11/06/2014,"1,149.96"
5163164,PEAK VALLEY HOUSING ASSOCIATION,Tameside Investment Partnership,Places,Authority Accommodation Rental,,11/06/2014,"54,000.00"
5163168,BURY MBC,Neighbourhoods & Communities,"Community, Adult & Adults Early Intervention",Contingency Provisions,,11/06/2014,"3,000.00"
5163170,PROGRESS CARE HOUSING ASSOCIATION LIMITED,Adult Services,"Community, Adult & Adults Early Intervention",Non-Authority Accommodation Rental,,18/06/2014,"5,316.08"
5163177,CITY LIFT SERVICES (NW) LTD,Adult Services,"Community, Adult & Adults Early Intervention",Adaptations To Buildings,,19/06/2014,720
5163179,FAB EVENTS LIMITED,Technical,Places,Professional Entertainment Services,,12/06/2014,"2,132.00"
5163180,PLANTATION INVESTMENTS LIMITED,Tameside Investment Partnership,Places,Chief/Ground Rent,,11/06/2014,"53,337.00"
5163184,OCR,Sustainable Growth,Places,Examination Fees,,27/06/2014,805
5163185,,Children's Services,Childrens Services,Foster Carer Agency Fees,Redacted Supplier,11/06/2014,"4,050.00"
5163199, ,Children's Services,Childrens Services,Childrens Homes Outside Local Authority Fees,Redacted Supplier,12/06/2014,"4,191.48"
5163202,RIGBY TAYLOR LTD,Operations,Places,General Materials,,27/06/2014,"6,990.00"
5163203,IN CONTROL PARTNERSHIP,Adult Services,"Community, Adult & Adults Early Intervention",Professional Consultancy Services,,27/06/2014,"4,166.66"
5163204,UNITYPARTNERSHIP LTD,Engineers Client,"Economic Growth, Investment and Sustainability",Engineers -External,,23/06/2014,"18,000.00"
5163221,ANCHOR TRUST,Neighbourhoods & Communities,"Community, Adult & Adults Early Intervention",Supporting People Gross Contract,,12/06/2014,"7,096.00"
5163222,JOHN PACKER LIMITED,Education Services,Childrens Services,Educational Equipment,,27/06/2014,"1,250.00"
5163224,FRESH START INDEPENDENCE PROJECT LTD,SCYP ,Childrens Services,Living With Formal Support,,11/06/2014,"1,149.96"
5163225,PITNEY BOWES BUSINESS INSIGHT,ICT Services,Places,Computer Hardware Maintenance Costs,,27/06/2014,"3,920.00"
5163227,JOHN PACKER LIMITED,Education Services,Childrens Services,Educational Equipment,,27/06/2014,558
5163230,NEW CHARTER HOUSING TRUST GROUP,Adult Services,"Community, Adult & Adults Early Intervention",Non-Authority Accommodation Rental,,11/06/2014,"2,754.56"
5163231,NEW CHARTER HOUSING TRUST GROUP,Adult Services,"Community, Adult & Adults Early Intervention",Non-Authority Accommodation Rental,,11/06/2014,"2,456.40"
5163232,NEW CHARTER HOUSING TRUST GROUP,Adult Services,"Community, Adult & Adults Early Intervention",Non-Authority Accommodation Rental,,11/06/2014,"2,456.40"
5163233,BT PLC,Multiple Heads of Service,Multiple Strategic Directorates,Telephone Landline Costs,,11/06/2014,974.23
5163234,BT PLC,Multiple Heads of Service,Multiple Strategic Directorates,Telephone Landline Costs,,11/06/2014,"2,637.16"
5163235, ,Children's Services,Childrens Services,Homecare Fees,Redacted Supplier,11/06/2014,"3,430.00"
5163239,TORDAN HEALTHCARE LTD,Children's Services,Childrens Services,Homecare Fees,,11/06/2014,884.5
5163243, ,Children's Services,Childrens Services,Homecare Fees,Redacted Supplier,12/06/2014,"12,642.90"
5163244,TORDAN HEALTHCARE LTD,Children's Services,Childrens Services,Homecare Fees,,11/06/2014,"1,812.50"
5163246,CARE IN MIND LTD,Children's Services,Childrens Services,Homecare Fees,,12/06/2014,"4,788.26"
5163250,OUR KIDS EYES,Children's Services,Childrens Services,Homecare Fees,,12/06/2014,"40,000.00"
5163254,THE PERFORMING RIGHT SOCIETY,Technical,Places,Licences,,11/06/2014,"1,572.22"
5163255,WRIXON CARE SERVICES LTD,Children's Services,Childrens Services,Professional Child Services,,11/06/2014,"1,000.00"
5163256,MERIDIAN (BRIGHTON LIMITED),Tameside Investment Partnership,Places,Chief/Ground Rent,,18/06/2014,"14,600.00"
5163257,SPECIALISED HOMES AND LODGINGS LTD,SCYP ,Childrens Services,Living With Formal Support,,27/06/2014,"10,744.28"
5163259,SOFTCAT LIMITED,Borough Solicitor,Director of Governance,Computer Hardware Maintenance Costs,,25/06/2014,"1,200.00"
5163260,SKILLS AND WORKS SOLUTIONS LTD,Technical,Places,Training Course Costs,,11/06/2014,"1,250.00"
5163265,CORE INTEGRATED SOLUTIONS LTD,Multiple Heads of Service,Multiple Strategic Directorates,Engineers -External,,19/06/2014,"1,000.00"
5163274,,Children's Services,Childrens Services,Foster Carer Agency Fees,Redacted Supplier,18/06/2014,"2,692.44"
5163279,DAVID M ACKROYD,Adult Services,"Community, Adult & Adults Early Intervention",Professional Consultancy Services,Business Payment,11/06/2014,770
5163289,ST JOHN AMBULANCE,Adult Services,"Community, Adult & Adults Early Intervention",Training Course Costs,,23/06/2014,550
5163297,PITNEY BOWES PURCHASE POWER,Exchequer,Director of Finance,Postages,,11/06/2014,"2,017.00"
5163300,ROYAL MAIL GROUP PLC,Exchequer,Director of Finance,Postages,,19/06/2014,"1,306.94"
5163300,ROYAL MAIL GROUP PLC,People & Performance,Director of Governance,Postages,,19/06/2014,"4,445.46"
5163301,ROYAL MAIL GROUP PLC,Exchequer,Director of Finance,Postages,,12/06/2014,"2,453.74"
5163304,ORANGE,"Media, Marketing & Communications",Director of Governance,Telephone Landline Costs,,11/06/2014,"1,174.00"
5163306,,Children's Services,Childrens Services,Foster Carer Agency Fees,Redacted Supplier,11/06/2014,"3,747.00"
5163311,CACI LTD,Public Health,Public Health,Computer Software,,27/06/2014,"18,525.00"
5163313,M.C. & M.A. STEWART HAULAGE LTD,Operations,Places,Horticultural Equipment,,23/06/2014,"1,080.00"
5163316,M.C. & M.A. STEWART HAULAGE LTD,Operations,Places,Horticultural Equipment,,12/06/2014,793.75
5163319,TRANSITIONAL PLUS CARE CIC LTD,Children's Services,Childrens Services,Living With Formal Support,,11/06/2014,785.72
5163319,TRANSITIONAL PLUS CARE CIC LTD,SCYP ,Childrens Services,Living With Formal Support,,11/06/2014,428.57
5163336,M.C. & M.A. STEWART HAULAGE LTD,Operations,Places,Horticultural Equipment,,23/06/2014,793.75
5163341,NORTHCOTE AT THE ROVERS,Adult Services,"Community,Environmental,Adult and Health Services",General Expenditure,,16/06/2014,"2,456.00"
5163343,INTACT PROJECTS LIMITED,SCYP ,Childrens Services,Living With Formal Support,,18/06/2014,520
5163346,CARDSAVE ONLINE LTD,Exchequer,Director of Finance,National Giro,,23/06/2014,"1,407.95"
5163351,CARE UK HOMECARE,Adult Services,"Community, Adult & Adults Early Intervention",Homecare Fees,,12/06/2014,"5,309.16"
5163357,THE FAMILY UNIT LTD,Children's Services,Childrens Services,Living With Formal Support,,12/06/2014,"3,385.71"
5163359,PLUCK ANDREW & CO,Children's Services,Childrens Services,Legal Fees,,11/06/2014,867.2
5163361,RESTORATIVE COMMUNITY SERVICE,Children's Services,Childrens Services,Professional Consultancy Services,,12/06/2014,"6,518.00"
5163363,CARE UK HOMECARE,Adult Services,"Community, Adult & Adults Early Intervention",Homecare Fees,,12/06/2014,"113,208.33"
5163367,A MULLANEY,Engineers Client,"Economic Growth, Investment and Sustainability",Internal Recharges,Business Payment,12/06/2014,975
5163368,A MULLANEY,Engineers Client,"Economic Growth, Investment and Sustainability",Internal Recharges,Business Payment,11/06/2014,975
5163369,THE FURNISHING SERVICE LTD,Neighbourhoods & Communities,"Community, Adult & Adults Early Intervention",Fixtures & Fittings Purchase,,12/06/2014,"1,000.15"
5163370,A MULLANEY,Engineers Client,"Economic Growth, Investment and Sustainability",Internal Recharges,Business Payment,12/06/2014,650
5163372,,Children's Services,Childrens Services,Foster Carer Agency Fees,Redacted Supplier,27/06/2014,"3,638.70"
5163374, ,Children's Services,Childrens Services,Childrens Homes Outside Local Authority Fees,Redacted Supplier,23/06/2014,"11,545.95"
5163376, ,Children's Services,Childrens Services,Childrens Homes Outside Local Authority Fees,Redacted Supplier,12/06/2014,"10,402.67"
5163385,NSL LIMITED,Technical,Places,NSL Fees,,27/06/2014,"51,895.59"
5163428, ,Adult Services,"Community, Adult & Adults Early Intervention",Residential Home Short Stay Fees,Redacted Supplier,12/06/2014,672.96
5163449,NOMIX-ENVIRO LTD,Operations,Places,Horticultural Equipment,,27/06/2014,"2,291.96"
5163463,SPECIALISED HOMES AND LODGINGS LTD,SCYP ,Childrens Services,Living With Formal Support,,16/06/2014,560.8
5163464,SPECIALISED HOMES AND LODGINGS LTD,SCYP ,Childrens Services,Living With Formal Support,,16/06/2014,"1,145.50"
5163499,SPECIALIST COMPUTER CENTRES LIMITED,ICT Services,Places,It Equipment,,19/06/2014,"137,612.00"
5163500,STAMFORD CARS UK LTD,Education Services,Childrens Services,Transport Of Ola Pupils,,12/06/2014,"1,332.50"
5163501, ,Environmental Services,Places,Grave Purchase/Maintenance Fee Income,Redacted Supplier,18/06/2014,550
5163507,PHOENIX SOFTWARE LTD,ICT Services,Places,Computer Software,,12/06/2014,"1,857.45"
5163513,MOSSLEY ATHLETIC JUNIOR FOOTBALL CLUB MASTER ACCOUNT,You Choose,Director of Governance,Other Contributions Deferred,,16/06/2014,500
5163538,REMPLOY LIMITED,Adult Services,"Community, Adult & Adults Early Intervention",Agency Staff,,16/06/2014,580.52
5163542,ENTRUST,ICT Services,Places,Computer Software,,27/06/2014,"3,236.13"
5163564,TAMESIDE RADIO,Technical,Places,Statutory Advertising,,18/06/2014,620
5163566,A & E FURNITURE LTD T.A THE PAVILION,Adult Services,"Community, Adult & Adults Early Intervention",Fixtures & Fittings Purchase,,16/06/2014,916
5163570,ROYAL MAIL GROUP PLC,Exchequer,Director of Finance,Postages,,16/06/2014,"1,969.24"
5163576,RANDSTAD EDUCATION LIMITED,Education Services,Childrens Services,APT&C Basic Pay,,23/06/2014,995
5163578,RANDSTAD EDUCATION LIMITED,Education Services,Childrens Services,APT&C Basic Pay,,23/06/2014,995
5163579,RANDSTAD EDUCATION LIMITED,Education Services,Childrens Services,APT&C Basic Pay,,23/06/2014,995
5163589,NPOWER LIMITED,Technical,Places,Electricity,,25/06/2014,"1,075.73"
5163590,STEP AHEAD RESOURCE SERVICES,SCYP ,Childrens Services,Living Without Formal Support,,16/06/2014,750
5163591,STEP AHEAD RESOURCE SERVICES,Children's Services,Childrens Services,Living Without Formal Support,,16/06/2014,850
5163594,STEP AHEAD RESOURCE SERVICES,SCYP ,Childrens Services,Living Without Formal Support,,16/06/2014,750
5163595,STEP AHEAD RESOURCE SERVICES,SCYP ,Childrens Services,Cash Grants,,16/06/2014,750
5163598,SCC CONSULTANCY LIMITED,Education Services,Childrens Services,Professional Services,,25/06/2014,"1,945.00"
5163599,SCC CONSULTANCY LIMITED,Education Services,Childrens Services,Professional Services,,25/06/2014,"1,305.00"
5163600,MR JOHN DELANEY,Education Services,Childrens Services,Transport Of Ola Pupils,Business Payment,16/06/2014,"1,184.00"
5163601,MR JOHN DELANEY,Education Services,Childrens Services,Transport Of Pupils,Business Payment,16/06/2014,"1,440.00"
5163602,MR JOHN DELANEY,Education Services,Childrens Services,Transport Of Pupils,Business Payment,16/06/2014,"1,600.00"
5163603,MR JOHN DELANEY,Education Services,Childrens Services,Transport Of Pupils,Business Payment,16/06/2014,"1,440.00"
5163604,MR JOHN DELANEY,Education Services,Childrens Services,Transport Of Pupils,Business Payment,16/06/2014,"1,600.00"
5163608,DAVID CROZIER,Education Services,Childrens Services,Transport Of Pupils,Business Payment,16/06/2014,"1,216.00"
5163610,DAVID CROZIER,Education Services,Childrens Services,Transport Of Pupils,Business Payment,16/06/2014,"1,056.00"
5163612,DAVID CROZIER,Education Services,Childrens Services,Transport Of Post 16 Pupils,Business Payment,16/06/2014,"1,536.00"
5163613,DAVID CROZIER,Education Services,Childrens Services,Transport Of Post 16 Pupils,Business Payment,16/06/2014,"1,536.00"
5163614,DAVID CROZIER,Education Services,Childrens Services,Transport Of Post 16 Pupils,Business Payment,16/06/2014,"1,536.00"
5163615,DBS,People & Performance,Director of Governance,Professional Consultancy Services,,19/06/2014,"11,401.00"
5163619,DENTON LINKS,Children's Services,Childrens Services,Hired Transport,,16/06/2014,"1,045.00"
5163622,GLM ACCESSIBLE TRANSPORT,Education Services,Childrens Services,Transport Of Pupils,,16/06/2014,"1,120.00"
5163623,GLM ACCESSIBLE TRANSPORT,Education Services,Childrens Services,Transport Of Pupils,,16/06/2014,"1,120.00"
5163624,GLM ACCESSIBLE TRANSPORT,Education Services,Childrens Services,Transport Of Post 16 Pupils,,16/06/2014,640
5163628,MOSSLEY PRIVATE HIRE,Education Services,Childrens Services,Transport Of Pupils,,16/06/2014,"1,600.00"
5163629,LIME TRAVEL,Education Services,Childrens Services,Transport Of Ola Pupils,,16/06/2014,"1,560.00"
5163630,LIME TRAVEL,Children's Services,Childrens Services,Hired Transport,,16/06/2014,"1,200.00"
5163631,LIME TRAVEL,Education Services,Childrens Services,Transport Of Pupils,,16/06/2014,"1,456.00"
5163632,LIME TRAVEL,Education Services,Childrens Services,Transport Of Pupils,,16/06/2014,"1,456.00"
5163633,LIME TRAVEL,Education Services,Childrens Services,Transport Of Pupils,,16/06/2014,"1,456.00"
5163634,LIME TRAVEL,Education Services,Childrens Services,Transport Of Pupils,,16/06/2014,848
5163635,LIME TRAVEL,Education Services,Childrens Services,Transport Of Ola Pupils,,16/06/2014,"1,384.00"
5163637,P MEADOWCROFT,Education Services,Childrens Services,Transport Of Pupils,Business Payment,16/06/2014,720
5163638,G M GREEN,Education Services,Childrens Services,Transport Of Pupils,Business Payment,16/06/2014,"1,120.00"
5163639,B MORRELL,Education Services,Childrens Services,Transport Of Pupils,Business Payment,16/06/2014,"1,600.00"
5163640, ,Education Services,Childrens Services,Transport Of Pupils,Redacted Supplier,16/06/2014,832
5163643,INSPIREDSPACES TAMESIDE LTD,Asset Management and Investment Partnership Management,"Economic Growth, Investment and Sustainability",Refurbishment Construction Costs,,17/06/2014,"46,270.43"
5163643,INSPIREDSPACES TAMESIDE LTD,Asset Mgmt & Investment Partnership Mgmt,Places,Professional Services,,17/06/2014,"43,500.00"
5163644,ROYALE MINICOACHES,Education Services,Childrens Services,Transport Of Pupils,,16/06/2014,"1,600.00"
5163646,MICHAEL WILD,Education Services,Childrens Services,Transport Of Pupils,Business Payment,16/06/2014,"1,632.00"
5163648,MICHAEL ADLARD,Children's Services,Childrens Services,Hired Transport,Business Payment,16/06/2014,780.5
5163650,GLENN CAWTHORN,Education Services,Childrens Services,Transport Of Pupils,Business Payment,16/06/2014,903
5163651,ELECTRICITY NORTH WEST LTD,Engineers Client,"Economic Growth, Investment and Sustainability",Contractor Expenditure,,18/06/2014,609.99
5163652,STAMFORD CARS UK LTD,Children's Services,Childrens Services,Hired Transport,,16/06/2014,594
5163653,ELECTRICITY NORTH WEST LTD,Engineers Client,"Economic Growth, Investment and Sustainability",Contractor Expenditure,,18/06/2014,609.99
5163659,COMFORT CALL LIMITED,Adult Services,"Community, Adult & Adults Early Intervention",Homecare Fees,,18/06/2014,"29,109.36"
5163671, ,Adult Services,"Community, Adult & Adults Early Intervention",Residential Home Short Stay Fees,Redacted Supplier,18/06/2014,672.96
5163672,TAMESIDE COLLEGE,Education Services,Childrens Services,Professional Services,,25/06/2014,"1,251.00"
5163679,TAMESIDE ARTS LTD,Adult Services,"Community, Adult & Adults Early Intervention",Professional Services,,18/06/2014,"1,040.40"
5163697,GREG EGAN,Education Services,Childrens Services,Additional Hire,Business Payment,23/06/2014,"3,200.00"
5163699,ABLE CARE AND SUPPORT SERVICES LTD,Adult Services,"Community, Adult & Adults Early Intervention",Homecare Fees,,19/06/2014,892.19
5163700,RANDSTAD EDUCATION LIMITED,Education Services,Childrens Services,APT&C Basic Pay,,23/06/2014,680
5163708,RANDSTAD EDUCATION LIMITED,Education Services,Childrens Services,APT&C Basic Pay,,23/06/2014,796
5163709,RANDSTAD EDUCATION LIMITED,Education Services,Childrens Services,APT&C Basic Pay,,23/06/2014,796
5163711,RANDSTAD EDUCATION LIMITED,Education Services,Childrens Services,APT&C Basic Pay,,23/06/2014,796
5163721,MOSSLEY PRIVATE HIRE,Strategy & Early Intervention,Childrens Services,Hired Transport,,16/06/2014,"1,440.00"
5163728,JACKSON & TAYLOR LTD,Housing,"Economic Growth, Investment and Sustainability",Improvement Grants - Final Mandatory,,19/06/2014,"4,005.00"
5163733,RANDSTAD EDUCATION LIMITED,Education Services,Childrens Services,APT&C Basic Pay,,23/06/2014,550
5163734,VISION FOR EDUCATION LIMITED,Education Services,Childrens Services,APT&C Basic Pay,,25/06/2014,575
5163735,RANDSTAD EDUCATION LIMITED,Education Services,Childrens Services,APT&C Basic Pay,,23/06/2014,995
5163737,RANDSTAD EDUCATION LIMITED,Education Services,Childrens Services,APT&C Basic Pay,,23/06/2014,995
5163738,RANDSTAD EDUCATION LIMITED,Education Services,Childrens Services,APT&C Basic Pay,,23/06/2014,602.2
5163739,RANDSTAD EDUCATION LIMITED,Education Services,Childrens Services,APT&C Basic Pay,,23/06/2014,995
5163746,RANDSTAD EDUCATION LIMITED,Education Services,Childrens Services,APT&C Basic Pay,,23/06/2014,995
5163752,RANDSTAD EDUCATION LIMITED,Education Services,Childrens Services,APT&C Basic Pay,,23/06/2014,995
5163753,RANDSTAD EDUCATION LIMITED,Education Services,Childrens Services,APT&C Basic Pay,,23/06/2014,550
5163754,RANDSTAD EDUCATION LIMITED,Education Services,Childrens Services,APT&C Basic Pay,,23/06/2014,550
5163756,RANDSTAD EDUCATION LIMITED,Education Services,Childrens Services,APT&C Basic Pay,,23/06/2014,995
5163759,RANDSTAD EDUCATION LIMITED,Education Services,Childrens Services,APT&C Basic Pay,,23/06/2014,995
5163760,RANDSTAD EDUCATION LIMITED,Education Services,Childrens Services,APT&C Basic Pay,,23/06/2014,995
5163763,SPECIALISED HOMES AND LODGINGS LTD,SCYP ,Childrens Services,Living With Formal Support,,27/06/2014,"3,214.28"
5163767,COMMUNITY INTEGRATED CARE,Adult Services,"Community, Adult & Adults Early Intervention",Homecare Fees,,27/06/2014,"18,360.00"
5163770,CREATIVE SUPPORT LTD,Adult Services,"Community, Adult & Adults Early Intervention",Residential Home Long Stay Fees,,18/06/2014,"1,661.52"
5163773,SPECIALISED HOMES AND LODGINGS LTD,SCYP ,Childrens Services,Living With Formal Support,,27/06/2014,"3,214.28"
5163775,B A HODCROFT,Environmental Services,Places,Plaques,Business Payment,25/06/2014,640
5163776,ABOUT TAMESIDE,Technical,Places,Statutory Advertising,,18/06/2014,500
5163784,M J DELANEY & CO LTD,Neighbourhoods & Communities,"Community, Adult & Adults Early Intervention",Contingency Provisions,,19/06/2014,"1,735.00"
5163803,WARRINGTON BOROUGH COUNCIL,Children's Services,Childrens Services,Adoption Agency Fees,,19/06/2014,"8,000.00"
5163814,WREXHAM COUNTY BOROUGH COUNCIL,Children's Services,Childrens Services,Adoption Agency Fees,,19/06/2014,"3,284.50"
5163815,ROYAL MAIL GROUP PLC,Exchequer,Director of Finance,Postages,,18/06/2014,"1,376.48"
5163816,ANDREW SMITH,Exchequer,Director of Finance,Legal Fees,Business Payment,18/06/2014,"2,720.00"
5163817,UPDATA INFRASTRUCTURE UK LTD,Multiple Heads of Service,Multiple Strategic Directorates,Telephone Landline Costs,,25/06/2014,"5,472.50"
5163818,UPDATA INFRASTRUCTURE UK LTD,Multiple Heads of Service,Multiple Strategic Directorates,Telephone Landline Costs,,19/06/2014,"18,882.50"
5163821,UPDATA INFRASTRUCTURE UK LTD,Multiple Heads of Service,Multiple Strategic Directorates,Telephone Landline Costs,,19/06/2014,"20,035.00"
5163822,ROYAL MAIL GROUP PLC,Exchequer,Director of Finance,Postages,,23/06/2014,"2,847.80"
5163826,KINGS CHAMBERS,Sustainable Growth,Places,Legal Fees,,18/06/2014,"1,575.00"
5163827,UPDATA INFRASTRUCTURE UK LTD,Multiple Heads of Service,Multiple Strategic Directorates,Communications Equipment,,18/06/2014,"6,578.75"
5163839,DEVERE VILLAGE URBAN RESORTS,Other Services,Director of Finance,Other Accomodation Related Costs,,19/06/2014,"1,179.71"
5163840,DEVERE VILLAGE URBAN RESORTS,Other Services,Director of Finance,Other Accomodation Related Costs,,18/06/2014,590.54
5163841,DEVERE VILLAGE URBAN RESORTS,Other Services,Director of Finance,Other Accomodation Related Costs,,19/06/2014,"1,178.92"
5163843,DEVERE VILLAGE URBAN RESORTS,Other Services,Director of Finance,Other Accomodation Related Costs,,18/06/2014,"1,369.95"
5163845,MEDICO NURSING AND HOMECARE,Adult Services,"Community, Adult & Adults Early Intervention",Homecare Fees,,18/06/2014,"10,639.57"
5163847,MEDICO NURSING AND HOMECARE,Adult Services,"Community, Adult & Adults Early Intervention",Homecare Fees,,18/06/2014,"9,315.06"
5163850,MEDICO NURSING AND HOMECARE,Adult Services,"Community, Adult & Adults Early Intervention",Homecare Fees,,18/06/2014,"9,767.23"
5163856,,Children's Services,Childrens Services,Foster Carer Agency Fees,Redacted Supplier,18/06/2014,799
5163863,ADOPTION MATTERS NORTHWEST,Children's Services,Childrens Services,Adoption Agency Fees,,18/06/2014,"7,166.52"
5163867,MERIDIAN HEALTHCARE LTD,Adult Services,"Community, Adult & Adults Early Intervention",Day Centre Fees,,18/06/2014,"25,783.00"
5163868,PENNINE CARE NHS TRUST,Adult Services,"Community, Adult & Adults Early Intervention",Professional Services,,19/06/2014,"7,296.00"
5163869,AFTER ADOPTION,Children's Services,Childrens Services,Professional Child Services,,18/06/2014,"1,720.00"
5163870,THE FAMILY UNIT LTD,Adult Services,"Community, Adult & Adults Early Intervention",Homecare Fees,,18/06/2014,"3,416.00"
5163873,TAMESIDE SPORTS TRUST,Neighbourhoods & Communities,"Community, Adult & Adults Early Intervention",Room Hire,,18/06/2014,"15,543.25"
5163879,ADONI SOFTWARE,ICT Services,Places,Computer Software,,23/06/2014,"1,500.00"
5163880,ADONI SOFTWARE,ICT Services,Places,Computer Software,,18/06/2014,"1,300.00"
5163904,DAISY COMMUNICATIONS LTD,Multiple Heads of Service,Multiple Strategic Directorates,Debits,,27/06/2014,"5,505.67"
5163906,CLEAR SKIES SOFTWARE LTD,Environmental Services,Places,Computer Software Maintenance Costs,,18/06/2014,"3,200.00"
5163934,VODAFONE,Multiple Heads of Service,Multiple Strategic Directorates,Debits,,18/06/2014,"1,890.18"
5163935,JULIE HOGAN,Children's Services,Childrens Services,Adoption Agency Fees,Business Payment,23/06/2014,616.29
5163936,JULIE HOGAN,Children's Services,Childrens Services,Adoption Agency Fees,Business Payment,23/06/2014,655.22
5163942,,Children's Services,Childrens Services,Foster Carer Agency Fees,Redacted Supplier,27/06/2014,"18,425.00"
5163944,,Children's Services,Childrens Services,Foster Carer Agency Fees,Redacted Supplier,27/06/2014,"8,250.00"
5163945,,Children's Services,Childrens Services,Foster Carer Agency Fees,Redacted Supplier,27/06/2014,"8,850.00"
5163946,,Children's Services,Childrens Services,Foster Carer Agency Fees,Redacted Supplier,27/06/2014,"8,250.00"
5163948,,Children's Services,Childrens Services,Foster Carer Agency Fees,Redacted Supplier,18/06/2014,"4,636.98"
5163969,ROMPA / WINSLOW,Children's Services,Childrens Services,Purchase General Office Equipment,,18/06/2014,"2,377.28"
5164003,GEORGE HOUSE TRUST,Public Health,Public Health,Professional Services,,18/06/2014,"1,750.00"
5164007,STOCKPORT CP  SOCIETY,Adult Services,"Community, Adult & Adults Early Intervention",Day Centre Fees,,18/06/2014,"1,006.35"
5164011,SPECIALISED HOMES AND LODGINGS LTD,SCYP ,Childrens Services,Living With Formal Support,,25/06/2014,"1,388.20"
5164014,STOCKPORT CP  SOCIETY,Adult Services,"Community, Adult & Adults Early Intervention",Day Centre Fees,,18/06/2014,"1,006.35"
5164071,STEP AHEAD RESOURCE SERVICES,SCYP ,Childrens Services,Living Without Formal Support,,23/06/2014,750
5164085,HOIST & SHOWER CHAIR CO,Housing,"Economic Growth, Investment and Sustainability",Improvement Grants - Final Mandatory,,19/06/2014,"1,250.00"
5164086,GREENSCAPE,Operations,Places,Agency Staff,,23/06/2014,"1,551.70"
5164089,NEW CHARTER HOUSING TRUST GROUP,Neighbourhoods & Communities,"Community, Adult & Adults Early Intervention",Professional Services,,19/06/2014,"4,166.66"
5164091,ASHTON DISCOUNT WAREHOUSE LTD,Adult Services,"Community, Adult & Adults Early Intervention",Fixtures & Fittings Purchase,,23/06/2014,638.9
5164093,NEW CHARTER HOUSING TRUST GROUP,Neighbourhoods & Communities,"Community, Adult & Adults Early Intervention",Professional Services,,19/06/2014,"4,166.66"
5164094,GREENSCAPE,Operations,Places,Agency Staff,,23/06/2014,702.77
5164098,NEW CHARTER HOUSING TRUST GROUP,Neighbourhoods & Communities,"Community, Adult & Adults Early Intervention",Professional Services,,19/06/2014,"3,042.00"
5164111,ELECTRICITY NORTH WEST LTD,Engineers Client,"Economic Growth, Investment and Sustainability",Street Lighting Works,,23/06/2014,609.99
5164115,STANNAH LIFT SERVICES LTD,Housing,"Economic Growth, Investment and Sustainability",Improvement Grants - Final Mandatory,,19/06/2014,"1,532.00"
5164116,ELECTRICITY NORTH WEST LTD,Technical,Places,Reactive Works Engineers Recharge,,23/06/2014,609.99
5164117,ELECTRICITY NORTH WEST LTD,Technical,Places,Contractor Expenditure,,23/06/2014,609.99
5164126,FRESH START INDEPENDENCE PROJECT LTD,SCYP ,Childrens Services,Living With Formal Support,,19/06/2014,821.4
5164134,S S A F A TAMESIDE,Multiple Heads of Service,Multiple Strategic Directorates,Debits,,19/06/2014,"3,315.15"
5164136,TAMESIDE 4 GOOD,Multiple Heads of Service,Multiple Strategic Directorates,Debits,,19/06/2014,"3,315.15"
5164137,WHEN YOU WISH UPON A STAR,Multiple Heads of Service,Multiple Strategic Directorates,Debits,,19/06/2014,"3,315.15"
5164159, ,Children's Services,Childrens Services,Cash Grants,Redacted Supplier,23/06/2014,500
5164175,THE HYDE FLOORING CO LTD,Adult Services,"Community, Adult & Adults Early Intervention",Fixtures & Fittings Purchase,,27/06/2014,"1,274.00"
5164187,ELECTRICITY NORTH WEST LTD,Technical,Places,Reactive Works Engineers Recharge,,23/06/2014,609.99
5164188,,Children's Services,Childrens Services,Childrens Homes Outside Local Authority Fees,Redacted Supplier,25/06/2014,"9,600.00"
5164194, ,Children's Services,Childrens Services,Childrens Homes Outside Local Authority Fees,Redacted Supplier,25/06/2014,"9,600.00"
5164197,FUSION CARE,SCYP ,Childrens Services,Living With Formal Support,,19/06/2014,"2,710.00"
5164199,FUSION CARE,SCYP ,Childrens Services,Living With Formal Support,,19/06/2014,"3,315.00"
5164200,D WOODMAN BUILDERS,Housing,"Economic Growth, Investment and Sustainability",Improvement Grants - Final Mandatory,,19/06/2014,"3,890.00"
5164202,HANDICARE LIMITED,Housing,"Economic Growth, Investment and Sustainability",Improvement Grants - Final Mandatory,,19/06/2014,"1,820.00"
5164204,,Children's Services,Childrens Services,Foster Carer Agency Fees,Redacted Supplier,23/06/2014,"1,476.41"
5164224,ENVIRONMENTAL WATER SERVICES LTD,Adult Services,"Community, Adult & Adults Early Intervention",Firefighting Equipment,,23/06/2014,"3,653.00"
5164229,LADYBROOK NURSERY,Operations,Places,General Materials,,23/06/2014,627.84
5164234, ,Children's Services,Childrens Services,Cash Grants,Redacted Supplier,23/06/2014,500
5164235,PROFILE SECURITY SERVICES LIMITED,Tameside Investment Partnership,Places,Security Services,,19/06/2014,"2,301.05"
5164240,,Children's Services,Childrens Services,Foster Carer Agency Fees,Redacted Supplier,23/06/2014,"3,623.90"
5164244,DOVE PROPERTIES,SCYP ,Childrens Services,Living Without Formal Support,,23/06/2014,923
5164246, ,SCYP ,Childrens Services,Living With Formal Support,Redacted Supplier,19/06/2014,"7,421.18"
5164251,AMTEC COMPUTER SERVICES LTD,ICT Services,Places,Computer Hardware Maintenance Costs,,25/06/2014,"3,099.00"
5164252,,Children's Services,Childrens Services,Foster Carer Agency Fees,Redacted Supplier,23/06/2014,"3,623.90"
5164253,PROFILE SECURITY SERVICES LIMITED,Tameside Investment Partnership,Places,Security Services,,27/06/2014,"2,292.48"
5164273, ,Children's Services,Childrens Services,Childrens Homes Outside Local Authority Fees,Redacted Supplier,23/06/2014,"5,785.74"
5164276,STRETTONS UPHOLSTERY,Adult Services,"Community, Adult & Adults Early Intervention",Fixtures & Fittings Purchase,,23/06/2014,"2,314.00"
5164287,HOUSING AND CARE 21,Adult Services,"Community, Adult & Adults Early Intervention",Homecare Fees,,25/06/2014,"15,906.83"
5164295,MRL HEALTHCARE LIMITED,Adult Services,"Community, Adult & Adults Early Intervention",Homecare Fees,,25/06/2014,"12,601.97"
5164306,FUSION CARE,SCYP ,Childrens Services,Living With Formal Support,,23/06/2014,"11,405.71"
5164308,TORDAN HEALTHCARE LTD,Children's Services,Childrens Services,Homecare Fees,,23/06/2014,630.75
5164310,TORDAN HEALTHCARE LTD,Children's Services,Childrens Services,Homecare Fees,,23/06/2014,"1,468.13"
5164318,TORDAN HEALTHCARE LTD,Children's Services,Childrens Services,Homecare Fees,,23/06/2014,877.25
5164322,TORDAN HEALTHCARE LTD,Children's Services,Childrens Services,Homecare Fees,,23/06/2014,725
5164331,CALL A CAR (TAMESIDE) LTD,Asset Mgmt & Investment Partnership Mgmt,Places,Hired Transport,,25/06/2014,680
5164342,TORDAN HEALTHCARE LTD,Children's Services,Childrens Services,Homecare Fees,,23/06/2014,826.5
5164347,TORDAN HEALTHCARE LTD,Children's Services,Childrens Services,Homecare Fees,,23/06/2014,735.88
5164381,OLDHAM MBC,Other Services,Director of Finance,Contribution,,23/06/2014,"134,430.00"
5164385,WORKS 4U SUPPORT SERVICES LIMITED,Education Services,Childrens Services,Professional Services,,25/06/2014,"102,755.00"
5164399,,Children's Services,Childrens Services,Foster Carer Agency Fees,Redacted Supplier,23/06/2014,"5,799.30"
5164400, ,Education Services,Childrens Services,Professional Services,Redacted Supplier,25/06/2014,"15,700.61"
5164401, ,Education Services,Childrens Services,Professional Services,Redacted Supplier,23/06/2014,"2,000.00"
5164402, ,Education Services,Childrens Services,Professional Services,Redacted Supplier,25/06/2014,"12,885.33"
5164403, ,Education Services,Childrens Services,Professional Services,Redacted Supplier,25/06/2014,"11,897.06"
5164404, ,Education Services,Childrens Services,Professional Services,Redacted Supplier,25/06/2014,"12,417.91"
5164405, ,Education Services,Childrens Services,Professional Services,Redacted Supplier,25/06/2014,"13,443.57"
5164406, ,Education Services,Childrens Services,Professional Services,Redacted Supplier,25/06/2014,"13,791.58"
5164407, ,Education Services,Childrens Services,Professional Services,Redacted Supplier,25/06/2014,"11,869.70"
5164419,CARE UK HOMECARE,Adult Services,"Community, Adult & Adults Early Intervention",Homecare Fees,,25/06/2014,"32,139.21"
5164420,CARE UK HOMECARE,Adult Services,"Community, Adult & Adults Early Intervention",Homecare Fees,,25/06/2014,"31,213.72"
5164426,FUSION CARE,SCYP ,Childrens Services,Cash Grants,,23/06/2014,"1,477.00"
5164437,HOUSING AND CARE 21,Adult Services,"Community, Adult & Adults Early Intervention",Homecare Fees,,25/06/2014,"16,028.54"
5164455,PULSE,Adult Services,"Community, Adult & Adults Early Intervention",Homecare Fees,,23/06/2014,610.08
5164458,,Children's Services,Childrens Services,Foster Carer Agency Fees,Redacted Supplier,23/06/2014,"3,623.90"
5164471,ELECTRICITY NORTH WEST LTD,Engineers Client,"Economic Growth, Investment and Sustainability",Street Lighting Works,,25/06/2014,609.99
5164489,PORTAKABIN LTD,Borough Solicitor,Director of Governance,Non-Authority Accommodation Rental,,25/06/2014,"12,301.48"
5164492,NORTHGATE INFORMATION SOLUTIONS UK LTD,Environmental Services,Places,It Equipment,,23/06/2014,"2,282.40"
5164493,NORTHGATE INFORMATION SOLUTIONS UK LTD,Sustainable Growth,Places,Computer Software,,25/06/2014,"12,250.00"
5164500,STAMFORD CARS UK LTD,Education Services,Childrens Services,Transport Of Ola Pupils,,25/06/2014,"2,560.00"
5164501,STAMFORD CARS UK LTD,Education Services,Childrens Services,Transport Of Ola Pupils,,25/06/2014,"1,428.00"
5164502,STAMFORD CARS UK LTD,Education Services,Childrens Services,Transport Of Post 16 Pupils,,25/06/2014,952
5164503,STAMFORD CARS UK LTD,Education Services,Childrens Services,Transport Of Pupils,,25/06/2014,"1,188.00"
5164504,STAMFORD CARS UK LTD,Education Services,Childrens Services,Transport Of Pupils,,25/06/2014,"1,296.00"
5164505,STAMFORD CARS UK LTD,Education Services,Childrens Services,Transport Of Pupils,,25/06/2014,"1,472.00"
5164506,STAMFORD CARS UK LTD,Education Services,Childrens Services,Transport Of Pupils,,25/06/2014,"1,296.00"
5164507,STAMFORD CARS UK LTD,Education Services,Childrens Services,Transport Of Post 16 Pupils,,25/06/2014,"1,120.00"
5164510,STAMFORD CARS UK LTD,Education Services,Childrens Services,Transport Of Pupils,,25/06/2014,"1,296.00"
5164511,STAMFORD CARS UK LTD,Education Services,Childrens Services,Transport Of Ola Pupils,,25/06/2014,"1,468.00"
5164513,STAMFORD CARS UK LTD,Education Services,Childrens Services,Transport Of Ola Pupils,,25/06/2014,"1,320.00"
5164515,STAMFORD CARS UK LTD,Education Services,Childrens Services,Transport Of Pupils,,25/06/2014,880
5164516,STAMFORD CARS UK LTD,Education Services,Childrens Services,Transport Of Ola Pupils,,25/06/2014,"1,008.00"
5164517,STAMFORD CARS UK LTD,Education Services,Childrens Services,Transport Of Ola Pupils,,25/06/2014,"1,640.00"
5164518,STAMFORD CARS UK LTD,Education Services,Childrens Services,Transport Of Ola Pupils,,25/06/2014,714
5164519,STAMFORD CARS UK LTD,Education Services,Childrens Services,Transport Of Pupils,,25/06/2014,"1,008.00"
5164520,STAMFORD CARS UK LTD,Education Services,Childrens Services,Transport Of Ola Pupils,,25/06/2014,"1,428.00"
5164521,STAMFORD CARS UK LTD,Education Services,Childrens Services,Transport Of Ola Pupils,,25/06/2014,"1,800.00"
5164522,STAMFORD CARS UK LTD,Education Services,Childrens Services,Transport Of Ola Pupils,,25/06/2014,"1,008.00"
5164523,DENTON LINKS,Education Services,Childrens Services,Transport Of Ola Pupils,,25/06/2014,"1,200.00"
5164524,DENTON LINKS,Children's Services,Childrens Services,Hired Transport,,25/06/2014,"1,520.00"
5164525,DENTON LINKS,Education Services,Childrens Services,Transport Of Ola Pupils,,25/06/2014,"2,672.00"
5164526,STAMFORD CARS UK LTD,Education Services,Childrens Services,Transport Of Pupils,,25/06/2014,"1,124.00"
5164527,STAMFORD CARS UK LTD,Education Services,Childrens Services,Transport Of Pupils,,25/06/2014,593.75
5164529,STAMFORD CARS UK LTD,Education Services,Childrens Services,Transport Of Pupils,,25/06/2014,952
5164530,STAMFORD CARS UK LTD,Education Services,Childrens Services,Transport Of Ola Pupils,,25/06/2014,"1,056.00"
5164531,STAMFORD CARS UK LTD,Education Services,Childrens Services,Transport Of Pupils,,25/06/2014,952
5164562,PULSE,Adult Services,"Community, Adult & Adults Early Intervention",Homecare Fees,,25/06/2014,610.08
5164570,DENTON LINKS,Education Services,Childrens Services,Transport Of Ola Pupils,,25/06/2014,"1,840.00"
5164576,M G DOMESTIC,Adult Services,"Community, Adult & Adults Early Intervention",Fixtures & Fittings Purchase,,27/06/2014,529.99
5164602,POST OFFICE,Technical,Places,Motor Licence Costs,,25/06/2014,"3,750.00"
5164616,DISTINCTLY LEGAL,Multiple Heads of Service,Multiple Strategic Directorates,Claims Settled,,27/06/2014,"9,000.00"
5164618, ,Adult Services,"Community, Adult & Adults Early Intervention",Residential Home Short Stay Fees,Redacted Supplier,25/06/2014,776.43
5164624,FUSION CARE,SCYP ,Childrens Services,Living With Formal Support,,25/06/2014,"11,405.71"
5164664,WRIXON CARE SERVICES LTD,SCYP ,Childrens Services,Transport Of Pupils,,25/06/2014,"1,106.45"
5164697,NPOWER LIMITED,Technical,Places,Electricity,,25/06/2014,"1,843.55"
5164741,ROBINSON & JORDAN FUNERAL SERVICES,Environmental Services,Places,Burial Fees,,25/06/2014,"1,385.00"
5164742,ROBINSON & JORDAN FUNERAL SERVICES,Environmental Services,Places,Burial Fees,,25/06/2014,"1,385.00"
5164749,FRESH START INDEPENDENCE PROJECT LTD,SCYP ,Childrens Services,Living With Formal Support,,25/06/2014,"1,149.96"
5164760,,Children's Services,Childrens Services,Foster Carer Agency Fees,Redacted Supplier,27/06/2014,"3,273.20"
5164761,FACILITY SOLUTIONS NORTHWEST,Borough Solicitor,Director of Governance,Security Services,,27/06/2014,982.5
,HAYS SPECIALIST RECRUITMENT GROUP,Multiple Heads of Service,Multiple Strategic Directorates,,,,"64,074.61"
,CARE RELATED PAYMENTS,Multiple Heads of Service,Multiple Strategic Directorates,,,,"392,991.71"
,CAPITA - BENEFIT PAYMENTS,Exchequer,Director of Finance, ,,,"7,982,083.89"
